Workbook

Sheet Introduction
D2: Transportation System Management and Operations - Traffic Infrastructure Process (TSMO-TIP)
D3: Project Benefit-Cost Analysis
C5: Introduction:
C6: The Project Benefit-Cost Analysis Tool has been developed to assess and quantify potential monetary benefits per project type. The Project Benefit-Cost Analysis Tool uses readily available, project specific data from the user and industry research to estimate potential project benefits. Project types include: Communication, DMS, CCTV Camera, Through Route Activated Warning System (TRAWS), and other. Several types of project benefits are considered for each project type: safety, mobility, productivity, and energy and environment. These estimated project benefits are then compared to the estimated total project cost. This methodology provides a clear and transparent manner in which to consider the value of a specific project, reducing concerns of inefficient use of funding resources.
C7: User Instruction:
C8: Step 1 - Complete Project Information. Step 2 - Select the Project Type you are proposing. Step 3 - Perform Project Benefit-Cost Analysis by providing project specific responses for each of the questions as appropriate. *It should be noted that this analysis is a generalized, estimated approach to considering potential monetary benefits. It is expected that some responses will be estimates based on the users knowledge of the project and location.
C9: User Resources:
C10: The 'Data Needs' table below may be referenced to determine where each of the data requests may be obtained. Data sources include the Needs Analysis Tool, readily available information from the User, User estimated values, and asset management/maintenance information. For any questions or concerns, contact Todd Szymkowski (todd.szymkowski@dot.wi.gov).
C12: Project Benefit-Cost Analysis Data Needs
C14: Anticipated Data Source | E14: Data Need | F14: Project Type
F15: Communication Expansion | G15: DMS | H15: Camera | I15: TRAWS | J15: Other
C16: User Response | E16: Project Specific Description | F16: X | G16: X | H16: X | I16: X | J16: X
E17: Deployment Intent | G17: X | H17: X
C18: Estimated | E18: Events per Year | G18: X | H18: X
E19: Average Event Duration | G19: X | H19: X
E20: Average Travel Time Savings | G20: X | H20: X
E21: Outages per Year | F21: X | G21: X | H21: X
C22: Asset Management / Maintenance Reports | E22: Maintenance Tickets and Cost | F22: X
C23: TOPS Lab Needs Analysis Tool* | E23: Crash Data by Type | F23: X | G23: X | H23: X | I23: X
E24: Average Vehicles Entering Intersection | F24: X | I24: X
E25: Average Daily Traffic Volumes Per Area | G25: X | H25: X | I25: X
C26: *Needs Analysis Tool can be found here: https://transportal.cee.wisc.edu/gis/webmaps/tip

Sheet Step 1 - Project Information
C2: =Introduction!D2 -> Transportation System Management and Operations - Traffic Infrastructure Process (TSMO-TIP)
C3: Step 1 - Project Information
D5: Region:
D6: Proposed Project Name:
D7: Requested By:
B10: 1 | C10: Using each of the following Needs Analysis Tool presets, provide the anticipated level of need in the vicinity of the proposed project. Access the Needs Analysis Tool here: https://transportal.cee.wisc.edu/gis/webmaps/tip.
E11: Default TIP
E12: Safety
E13: Mobility (Present)
E14: Mobility (Future)
E15: Service
E16: Freight Performance
B18: 2 | C18: Briefly describe the proposed project. Please include the purpose and any relevant information.
B21: 3 | C21: Identify any stakeholders who have been involved with the development of this project.
C23: ¨ | D23: State Patrol | E23: specify:
C25: ¨ | D25: TOPS Lab (UW) | E25: specify:
C27: ¨ | D27: Project Team | E27: specify:
C29: ¨ | D29: Regional Stakeholders | E29: specify:
C31: ¨ | D31: BTO Stakeholders | E31: specify:
C33: ¨ | D33: Local Agencies | E33: specify:
C35: ¨ | D35: Other Agencies: | E35: specify:
B38: 4 | C38: Briefly describe the outcome of the collaboration identified above.
B41: 5 | C41: Please provide any further information that will be relevant when considering this project.
C44: Operations and Maintenance Considerations
B46: 6 | C46: Indicate whether the following operations and maintenance items have been considered:
C48: ¨ | D48: Who – Who are the stakeholders involved with the system?
C50: ¨ | D50: What – What are the elements and the high-level capabilities of the system?
C52: ¨ | D52: What – What existing networks will be affected by the system?
C54: ¨ | D54: Where – What is the geographic and physical extent of the system?
C56: ¨ | D56: When – What is the sequence of activities that will be performed?
C58: ¨ | D58: Why – What is the problem or opportunity addressed by the system?
C60: ¨ | D60: How – How will the system be developed?
C62: ¨ | D62: How – How will the system be operated? Are there available resources to take on this responsibility or will additional resources be required? Will additional training be required?
C64: ¨ | D64: How – How will the system be maintained? Are there available resources to take on this responsibility or will additional resources be required?
B66: 7 | C66: Indicate any integration that will be required with this proposed deployment.
B69: 8 | C69: Indicate any further information that will be helpful to document pertaining to operations and maintenance of the proposed deployment:

Sheet Step 2 - Project Type
C2: =Introduction!D2 -> Transportation System Management and Operations - Traffic Infrastructure Process (TSMO-TIP)
C3: Step 2 - Project Type
C5: Communication
C7: DMS
C9: CCTV
C11: TRAWS
C13: Other
C15: Test
C17: Benefit-Cost Analysis Resources:
C18: Analysis Parameters
C20: Research Resources

Sheet Test (hidden)
C1: Transportation System Management and Operations - Traffic Infrastructure Process
C2: Project Benefits - Test
C4: Back

Sheet Communication (hidden)
E2: Transportation System Management and Operations - Traffic Infrastructure Process
E3: Project Benefit-Cost Analysis - Communication Infrastructure
E4: Design-build and integrate fiber optic links between existing fiber infrastructure and signal systems, or procure and install cellular Ethernet modems.
E6: Region: | I6: =IF('Step 1 - Project Information'!E5=0, "-",'Step 1 - Project Information'!E5) -> -
E7: Proposed Project Name: | I7: =IF('Step 1 - Project Information'!E6=0, "-",'Step 1 - Project Information'!E6) -> -
E8: Requested By: | I8: =IF('Step 1 - Project Information'!E7=0, "-",'Step 1 - Project Information'!E7) -> -
D11: 1 | E11: What is the anticipated present value cost of the project?
D14: 2 | E14: Using each of the following Needs Analysis Tool presets, provide the anticipated level of need in the vicinity of the proposed project:
I15: Default TIP | J15: =IF('Step 1 - Project Information'!F11=0,"-",'Step 1 - Project Information'!F11) -> -
I16: Safety | J16: =IF('Step 1 - Project Information'!F12=0,"-",'Step 1 - Project Information'!F12) -> -
I17: Mobility (Present) | J17: =IF('Step 1 - Project Information'!F13=0,"-",'Step 1 - Project Information'!F13) -> -
I18: Mobility (Future) | J18: =IF('Step 1 - Project Information'!F14=0,"-",'Step 1 - Project Information'!F14) -> -
I19: Service | J19: =IF('Step 1 - Project Information'!F15=0,"-",'Step 1 - Project Information'!F15) -> -
I20: Freight Performance | J20: =IF('Step 1 - Project Information'!F16=0,"-",'Step 1 - Project Information'!F16) -> -
C22: Productivity Benefits
D24: P1. | E24: Will construction of this infrastructure eliminate the need to use currently leased fibers?
E27: If so, how many fiber pairs are currently leased?
J28: fiber pairs
D30: P2. | E30: How many device locations will be provided communication through this infrastructure?
J31: locations
D33: P3. | E33: How many miles of fiber will be constructed with this project?
J34: miles
D36: P4. | E36: Will this communication infrastructure be leased as a revenue source?
D39: P5. | E39: If leased, how many fiber pairs are expected to be leased?
J40: fiber pairs
H42: Estimated Annual Productivity Benefit: | I42: =Comm!J54 -> 0
C45: Redundancy Benefits
D47: R1. | E47: Will this installation of communication infrastructure provide a redundant link?
D50: R2. | E50: Does this link provide redundancy to communication infrastructure that is leased to others?
D53: R3. | E53: Based on the portion of the network that is provided redundancy with this link, how would you rate the importance of this link?
D56: R4. | E56: Approximately how many outages are experienced per year that will benefit from this redundant link?
J57: outages per year
H59: Estimated Annual Redundancy Benefit: | I59: =Comm!J89 -> 0
C62: Benefit-Cost Analysis
D64: Y1 | E64: Annual Benefit | F64: =Comm!F94 -> 0 | H64: Y11 | I64: Annual Benefit | J64: =Comm!J94 -> 0
D65: Y1 | E65: Estimated Cost | F65: =Comm!F95 -> 0 | H65: Y11 | I65: Estimated Cost | J65: =Comm!J95 -> 0
D67: Y2 | E67: PV Annual Benefit | F67: =Comm!F97 -> 0 | H67: Y12 | I67: PV Annual Benefit | J67: =Comm!J97 -> 0
D68: Y2 | E68: PV Estimated Cost | F68: =Comm!F98 -> 0 | H68: Y12 | I68: PV Estimated Cost | J68: =Comm!J98 -> 0
D70: Y3 | E70: PV Annual Benefit | F70: =Comm!F100 -> 0 | H70: Y13 | I70: PV Annual Benefit | J70: =Comm!J100 -> 0
D71: Y3 | E71: PV Estimated Cost | F71: =Comm!F101 -> 0 | H71: Y13 | I71: PV Estimated Cost | J71: =Comm!J101 -> 0
D73: Y4 | E73: PV Annual Benefit | F73: =Comm!F103 -> 0 | H73: Y14 | I73: PV Annual Benefit | J73: =Comm!J103 -> 0
D74: Y4 | E74: PV Estimated Cost | F74: =Comm!F104 -> 0 | H74: Y14 | I74: PV Estimated Cost | J74: =Comm!J104 -> 0
D76: Y5 | E76: PV Annual Benefit | F76: =Comm!F106 -> 0 | H76: Y15 | I76: PV Annual Benefit | J76: =Comm!J106 -> 0
D77: Y5 | E77: PV Estimated Cost | F77: =Comm!F107 -> 0 | H77: Y15 | I77: PV Estimated Cost | J77: =Comm!J107 -> 0
D79: Y6 | E79: PV Annual Benefit | F79: =Comm!F109 -> 0 | H79: Y16 | I79: PV Annual Benefit | J79: =Comm!J109 -> 0
D80: Y6 | E80: PV Estimated Cost | F80: =Comm!F110 -> 0 | H80: Y16 | I80: PV Estimated Cost | J80: =Comm!J110 -> 0
D82: Y7 | E82: PV Annual Benefit | F82: =Comm!F112 -> 0 | H82: Y17 | I82: PV Annual Benefit | J82: =Comm!J112 -> 0
D83: Y7 | E83: PV Estimated Cost | F83: =Comm!F113 -> 0 | H83: Y17 | I83: PV Estimated Cost | J83: =Comm!J113 -> 0
D85: Y8 | E85: PV Annual Benefit | F85: =Comm!F115 -> 0 | H85: Y18 | I85: PV Annual Benefit | J85: =Comm!J115 -> 0
D86: Y8 | E86: PV Estimated Cost | F86: =Comm!F116 -> 0 | H86: Y18 | I86: PV Estimated Cost | J86: =Comm!J116 -> 0
D88: Y9 | E88: PV Annual Benefit | F88: =Comm!F118 -> 0 | H88: Y19 | I88: PV Annual Benefit | J88: =Comm!J118 -> 0
D89: Y9 | E89: PV Estimated Cost | F89: =Comm!F119 -> 0 | H89: Y19 | I89: PV Estimated Cost | J89: =Comm!J119 -> 0
D91: Y10 | E91: PV Annual Benefit | F91: =Comm!F121 -> 0 | H91: Y20 | I91: PV Annual Benefit | J91: =Comm!J121 -> 0
D92: Y10 | E92: PV Estimated Cost | F92: =Comm!F122 -> 0 | H92: Y20 | I92: PV Estimated Cost | J92: =Comm!J122 -> 0
I95: 20-Year Monetized Benefits = | J95: =Comm!I125 -> 0
I96: 20-Year Estimated Costs = | J96: =Comm!I126 -> 0
I98: Benefit-Cost Ratio = | J98: =Comm!I128 ->  | K98: :1
I99: Return-on-Investment = | J99: =Comm!I129 -> 
J101: Back to Links Tab

Sheet Comm (hidden)
E2: Transportation System Management and Operations - Traffic Infrastructure Process
E3: =Communication!E3 -> Project Benefit-Cost Analysis - Communication Infrastructure
E4: Design-build and integrate fiber optic links between existing fiber infrastructure and signal systems, or procure and install cellular Ethernet modems.
E6: Region: | H6: =IF('Step 1 - Project Information'!E5=0, "-",'Step 1 - Project Information'!E5) -> -
E7: Proposed Project Name: | H7: =IF('Step 1 - Project Information'!E6=0, "-",'Step 1 - Project Information'!E6) -> -
E8: Requested By: | H8: =IF('Step 1 - Project Information'!E7=0, "-",'Step 1 - Project Information'!E7) -> -
D11: 1 | E11: What is the anticipated cost of the project? | H11: =Communication!I12 -> 0
D13: 2 | E13: Using each of the following Needs Analysis Tool presets, provide the anticipated level of need in the vicinity of the proposed project:
H14: Default TIP | I14: =IF('Step 1 - Project Information'!F11=0,"-",'Step 1 - Project Information'!F11) -> -
H15: Safety | I15: =IF('Step 1 - Project Information'!F12=0,"-",'Step 1 - Project Information'!F12) -> -
H16: Mobility (Present) | I16: =IF('Step 1 - Project Information'!F13=0,"-",'Step 1 - Project Information'!F13) -> -
H17: Mobility (Future) | I17: =IF('Step 1 - Project Information'!F14=0,"-",'Step 1 - Project Information'!F14) -> -
H18: Service | I18: =IF('Step 1 - Project Information'!F15=0,"-",'Step 1 - Project Information'!F15) -> -
H19: Freight Performance | I19: =IF('Step 1 - Project Information'!F16=0,"-",'Step 1 - Project Information'!F16) -> -
C21: Productivity Benefits
D23: P1. | E23: Will construction of this infrastructure eliminate the need to use currently leased fibers?
I24: =Communication!I25 -> 0
E26: If so, how many fiber pairs are currently leased?
I27: =Communication!I28 -> 0 | J27: fiber pairs
F29: Annual cost of leasing fiber per mile | I29: =PARAMETERS!E43 -> 600 | J29: per mile
H31: Annual benefit of not leasing fiber: | I31: =IF(I24="Yes",I29*I42*I27, 0) -> 0
D33: P2. | E33: How many device locations will be provided communication through this infrastructure?
I34: =Communication!I31 -> 0 | J34: locations
F36: Capital cost of cellular modem. Assume 5-year replacement | I36: =PARAMETERS!E40 -> 2500
F37: Annual operations cost of cellular modem | I37: =PARAMETERS!E41*12 -> 1800
H39: Annual benefit of not using cell modems: | I39: =IF(I24="No",I34*(I36/5)+I37*I34, 0) -> 0
D41: P3. | E41: How many miles of fiber will be constructed with this project?
I42: =Communication!I34 -> 0 | J42: miles
D44: P4. | E44: Will this communication infrastructure be leased as a revenue source?
I45: =Communication!I37 -> 0
D47: P5. | E47: If leased, how many fiber pairs are expected to be leased?
I48: =Communication!I40 -> 0 | J48: fiber pairs
E50: Annual average revenue per mile fiber pair | I50: =PARAMETERS!E42 -> 300 | J50: per pair per mile
H52: Annual benefit of revenue from leasing fiber: | I52: =IF(I45="Yes",I42*I48*I50, 0) -> 0
I54: Estimated Annual Benefit (Y1): | J54: =I31+I39+I52 -> 0
C57: Redundancy Benefits
D59: R1. | E59: Will this installation of communication infrastructure provide a redundant link?
I60: =Communication!I48 -> 0
D62: R2. | E62: Does this link provide redundancy to communication infrastructure that is leased to others?
E63: *assumes that an additional 10 hours of time is required by CE if leased to others for coordination.
I64: =Communication!I51 -> 0
D66: R3. | E66: Based on the portion of the network that is provided redundancy with this link, how would you rate the importance of this link?
I67: =Communication!I54 -> 0
D69: R4. | E69: Approximately how many outages are experienced per year that will benefit from this redundant link?
I70: =Communication!I57 -> 0 | J70: outages per year
H72: WisDOT average wage by occupation type (8.1 and Mark Lloyd email).
I73: =PARAMETERS!E48 -> 29.21971154 | J73: IT hourly wage
I74: =PARAMETERS!E49 -> 29.21971154 | J74: Electrical Tech hourly wage
I75: =PARAMETERS!E50 -> 40.56009615 | J75: Civil Engineer hourly wage
H77: Estimated cost of an outage
H78: Maintenance Ticket will be required regardless= | I78: 0
H79: Emergency Surcharge (Tapco email)= | I79: =PARAMETERS!E51 -> 100
H80: Cost of IT Tech handling emergency outage= | I80: =15*I73 -> 438.2956731
F81: *assumes 15 hours of time. Assumes that time would be absorbed during normal working hours if the outage had been prevented with a redundant link.
H82: Cost of Electrical Tech handling emergency outage= | I82: =15*I74 -> 438.2956731
F83: *assumes 15 hours of time. Assumes that time would be absorbed during normal working hours if the outage had been prevented with a redundant link.
H84: Cost of Engineer handling emergency outage= | I84: =IF(I67="Critical",I75*45,IF(I67="Somewhat Critical",I75*30,15*I75))+IF(I64="Yes",I75*15,0) -> 608.4014423
F85: *assumes 15 hours of time for three people if critical; 15 hours of two persons if somewhat critical; and 15 hours if important. Assumes an additional 15 hours of coordination time if the link also has a leasee. Assumes that time would be absorbed during normal working hours if the outage had been prevented with a redundant link.
H86: Total per outage= | I86: =SUM(I78:I84) -> 1584.992788
H87: Total per year= | I87: =I86*I70 -> 0
I89: Estimated Annual Redundancy Benefit (Y1): | J89: =IF(I60="Yes",I87,0) -> 0
C92: Benefit-Cost Analysis
D94: Y1 | E94: Annual Benefit | F94: =J54 -> 0 | H94: Y11 | I94: Annual Benefit | J94: =F121/(1.07^1) -> 0
D95: Y1 | E95: Estimated Cost | F95: =H11 -> 0 | H95: Y11 | I95: Estimated Cost | J95: =F122/(1.07^1) -> 0
D97: Y2 | E97: PV Annual Benefit | F97: =F94/(1.07^1) -> 0 | H97: Y12 | I97: PV Annual Benefit | J97: =J94/(1.07^1) -> 0
D98: Y2 | E98: PV Estimated Cost | F98: =PARAMETERS!E46*I42/(1.07^1) -> 0 | H98: Y12 | I98: PV Estimated Cost | J98: =J95/(1.07^1) -> 0
D100: Y3 | E100: PV Annual Benefit | F100: =F97/(1.07^1) -> 0 | H100: Y13 | I100: PV Annual Benefit | J100: =J97/(1.07^1) -> 0
D101: Y3 | E101: PV Estimated Cost | F101: =F98/(1.07^2) -> 0 | H101: Y13 | I101: PV Estimated Cost | J101: =J98/(1.07^1) -> 0
D103: Y4 | E103: PV Annual Benefit | F103: =F100/(1.07^1) -> 0 | H103: Y14 | I103: PV Annual Benefit | J103: =J100/(1.07^1) -> 0
D104: Y4 | E104: PV Estimated Cost | F104: =F98/(1.07^3) -> 0 | H104: Y14 | I104: PV Estimated Cost | J104: =J101/(1.07^1) -> 0
D106: Y5 | E106: PV Annual Benefit | F106: =F103/(1.07^1) -> 0 | H106: Y15 | I106: PV Annual Benefit | J106: =J103/(1.07^1) -> 0
D107: Y5 | E107: PV Estimated Cost | F107: =F104/(1.07^1) -> 0 | H107: Y15 | I107: PV Estimated Cost | J107: =J104/(1.07^1) -> 0
D109: Y6 | E109: PV Annual Benefit | F109: =F106/(1.07^1) -> 0 | H109: Y16 | I109: PV Annual Benefit | J109: =J106/(1.07^1) -> 0
D110: Y6 | E110: PV Estimated Cost | F110: =F107/(1.07^1) -> 0 | H110: Y16 | I110: PV Estimated Cost | J110: =J107/(1.07^1) -> 0
D112: Y7 | E112: PV Annual Benefit | F112: =F109/(1.07^1) -> 0 | H112: Y17 | I112: PV Annual Benefit | J112: =J109/(1.07^1) -> 0
D113: Y7 | E113: PV Estimated Cost | F113: =F110/(1.07^1) -> 0 | H113: Y17 | I113: PV Estimated Cost | J113: =J110/(1.07^1) -> 0
D115: Y8 | E115: PV Annual Benefit | F115: =F112/(1.07^1) -> 0 | H115: Y18 | I115: PV Annual Benefit | J115: =J112/(1.07^1) -> 0
D116: Y8 | E116: PV Estimated Cost | F116: =F113/(1.07^1) -> 0 | H116: Y18 | I116: PV Estimated Cost | J116: =J113/(1.07^1) -> 0
D118: Y9 | E118: PV Annual Benefit | F118: =F115/(1.07^1) -> 0 | H118: Y19 | I118: PV Annual Benefit | J118: =J115/(1.07^1) -> 0
D119: Y9 | E119: PV Estimated Cost | F119: =F116/(1.07^1) -> 0 | H119: Y19 | I119: PV Estimated Cost | J119: =J116/(1.07^1) -> 0
D121: Y10 | E121: PV Annual Benefit | F121: =F118/(1.07^1) -> 0 | H121: Y20 | I121: PV Annual Benefit | J121: =J118/(1.07^1) -> 0
D122: Y10 | E122: PV Estimated Cost | F122: =F119/(1.07^1) -> 0 | H122: Y20 | I122: PV Estimated Cost | J122: =J119/(1.07^1) -> 0
H125: 20-Year Monetized Benefits = | I125: =F94+F97+F100+F103+F106+F109+F112+F115+F118+F121+J94+J97+J100+J103+J106+J109+J112+J115+J118+J121 -> 0
H126: 20-Year Estimated Costs = | I126: =F95+F98+F101+F104+F107+F110+F113+F116+F119+F122+J95+J98+J101+J104+J107+J110+J113+J116+J119+J122 -> 0
H128: Benefit-Cost Ratio = | I128: =I125/I126 ->  | J128: :1
H129: Return-on-Investment = | I129: =(I125-I126)/I126 -> 
I131: Back to Links Tab

Sheet DMS (hidden)
E2: Transportation System Management and Operations - Traffic Infrastructure Process
E3: Project Benefit-Cost Analysis - Dynamic Message Sign (DMS)
F6: Region: | G6: =IF('Step 1 - Project Information'!E5=0, "-",'Step 1 - Project Information'!E5) -> -
F7: Proposed Project Name: | G7: =IF('Step 1 - Project Information'!E6=0, "-",'Step 1 - Project Information'!E6) -> -
F8: Requested By: | G8: =IF('Step 1 - Project Information'!E7=0, "-",'Step 1 - Project Information'!E7) -> -
D11: 1 | E11: What is the anticipated cost of the project (total design, construction, and communication cost)?
D13: 2 | E13: What is the anticipated number of DMS to be installed for the project?
D15: 3 | E15: Please complete the Guidance Analysis below to define the intent of the project. The summary of your results is listed here:
F16: G1, Weather Conditions | G16: =J34 -> NOT SUPPORTED
F17: G2, Traffic Conditions | G17: =J49 -> NOT SUPPORTED
F18: G3, Traffic Control | G18: =J58 -> NOT SUPPORTED
F19: G4, Special Events | G19: =J69 -> NOT SUPPORTED
C21: DMS Guidance Analysis:
C22: The ITS Planning Guidance below was completed by an ENTERPRISE Pooled Fund Study and is used here to help define the intent of the DMS.
D24: DMS Guidance #1 - To Inform Travelers of Weather Conditions
D26: Consideration | J26: Response
D27: 1 | E27: If the location is prone to weather situations that travelers would not otherwise be forewarned about (e.g. spots where fog regularly forms, bridges that ice early, mountain passes with weather that differs from approaches).
D28: 2 | E28: If there is available road weather information for the area downstream of the candidate DMS location.
D29: 3 | E29: If there is the capability (either manually by staff members or automated through a condition reporting system) to create event specific descriptions of weather conditions to be displayed on the DMS.
D30: 4 | E30: If there is a need to disseminate event specific descriptions (rather than simply activating a flashing warning sign that says "Weather Alert When Flashing").
D31: 5 | E31: If there are options for either alternate routes or services, that might be described on the DMS, where travelers may wait out conditions.
D32: 6 | E32: If flashing beacon signs have been tried and not proven to generate responses from travelers.
D33: 7 | E33: If weather events contribute to a significant number of crashes or road closures which have major impacts to travelers.
D34: DMS Guidance #1 is: | J34: =IF(OR(J27="YES",J31="YES",J32="YES",J33="YES"),"SUPPORTED", IF(OR(J28="YES",J29="YES",J30="YES"), "PARTIALLY SUPPORTED","NOT SUPPORTED")) -> NOT SUPPORTED
D38: DMS Guidance #2 - To Inform Travelers of Traffic Conditions
D40: Consideration | J40: Response
D41: 1 | E41: If the target area is monitored by CCTV cameras, traffic detectors, or another method of monitoring the conditions, or has travel times for the downstream stretch of road.
D42: 2 | E42: Events occurring in the area unexpectedly impact or impede traffic (e.g. close a lane, encounter slow traffic in one or more lanes, or events on the shoulder) an average of at least two times per month.
D43: 3 | E43: If there are acceptable alternate routes with capacity to accept vehicles that may deviate based upon the information.
D44: 4 | E44: If the location is a stretch of road where no alternate route are possible and travelers would benefit from information describing the cause and/or extent of delays in order to relieve driver anxiety or confusion.
D45: 5 | E45: If there are horizontal or vertical curves that create safety issues when traffic is stopped unexpectedly.
D46: 6 | E46: The route being considered for the DMS has on average at least 2 hours per day of peak period travel where traffic flow exceeds 1,100 veh/hr/lane.
D47: 7 | E47: The route being considered for the DMS has on average experienced conditions considered Level of Service C.
D48: 8 | E48: The route being considered for the DMS experiences average annual daily traffic (AADT) of 16,800 for a 2 lane road; 33,600 for a 4 lane road; 50,400 for a 6 lane road, 67,200 for an 8 lane road.
D49: DMS Guidance #2 is: | J49: =IF(OR(J45="YES",J46="YES"),"SUPPORTED", IF(OR(J41="YES",J42="YES",J43="YES",J44="YES",J47="YES",J48="YES"), "PARTIALLY SUPPORTED","NOT SUPPORTED")) -> NOT SUPPORTED
D53: DMS Guidance #3 - Changing Traffic Control or Conditions (Work Zone)
D54: Consideration | J54: Response
D55: 1 | E55: The candidate location is upstream of an area with construction or maintenance activities that are expected to cause at least 15 minutes of delay to the mainline traffic.
D56: 2 | E56: If the candidate location is upstream of traffic control or construction/maintenance activities that are expected to change more frequently than once every 60 days.
D57: 3 | E57: If the posted work zone speed limit is greater than 45 MPH.
D58: DMS Guidance #3 is: | J58: =IF(J55="YES","SUPPORTED", IF(AND(J56="YES",J57="YES"), "SUPPORTED",IF(OR(J55="YES",J56="YES",J57="YES"), "PARTIALLY SUPPORTED","NOT SUPPORTED"))) -> NOT SUPPORTED
D62: DMS Guidance #4 - Special Events
D63: Consideration | J63: Response
D64: 1 | E64: If the location contains a venue that houses ticketed events (typically with rapid and tight arrival patterns for a specified start time).
D65: 2 | E65: If the event venue typically houses at least two weekday (M-F) ticketed event per week (including seasonal sporting events that only occur during the season).
D66: 3 | E66: If the event venue typically houses at least 10 events per year attracting 30,000 visitors or more.
D67: 4 | E67: If the setting of the venue is such that mainline traffic (not attending the event) is impacted by the conditions.
D68: 5 | E68: If there are alternate parking or traffic options that could be displayed on signs to direct visitors to more preferred options.
D69: DMS Guidance #4 is: | J69: =IF(J66="YES", "SUPPORTED", IF(AND(J64="YES",J65="YES",J66="YES",J67="YES",J68="YES"),"SUPPORTED", IF(OR(J64="YES",J65="YES",J66="YES",J67="YES",J68="YES"), "PARTIALLY SUPPORTED","NOT SUPPORTED"))) -> NOT SUPPORTED
D72: 2 | E72: 2
D73: 4 | E73: How many crashes, by severity, occurred in the past year at this/these corridor(s)? Use 1 miles upstream traffic from DMS sign. If using the Needs Analysis Tool to obtain crash data, divide the 5 year crashes by 5 to provide an average annual number of crashes.
H74: Fatal Injury
H75: Suspected Serious Injury
H76: Suspected Minor Injury
H77: Possible Injury
H78: Property Damage-Only
D81: 5 | E81: Estimate the average number of traffic/weather/special events that occur per year that will be positively affected by use of the proposed DMS.
I82: events per year
D84: 6 | E84: Estimate the average duration (minutes) of traffic events (due to weather or incidents) that occur and will be positively affected by use of the proposed DMS.
I85: minutes
D87: 7 | E87: Estimate the average travel time savings from adjusting one's route based on direction given on the proposed DMS.
I88: minutes
D90: 8 | E90: Provide the current directional AADT along the corridor where the proposed DMS will be deployed (the Needs Analysis Tool may be used to obtain the value - note that volume is reported per roadway and not bi-directional).
I91: veh per day
G93: Estimated Annual Safety Benefit: | H93: ='DMS Calc'!F75 -> 0
G94: Estimated Annual Mobility Benefit: | H94: ='DMS Calc'!F98 -> 0
G95: Estimated Annual Energy and Environment Benefit: | H95: ='DMS Calc'!F123 -> 0
C97: Benefit-Cost Analysis
D99: Y1 | E99: Annual Benefit | F99: ='DMS Calc'!E128 -> 0 | G99: Y11 | H99: Annual Benefit | I99: ='DMS Calc'!H128 -> 0
D100: Y1 | E100: Estimated Cost | F100: ='DMS Calc'!E129 -> 0 | G100: Y11 | H100: Estimated Cost | I100: ='DMS Calc'!H129 -> 0
D102: Y2 | E102: PV Annual Benefit | F102: ='DMS Calc'!E131 -> 0 | G102: Y12 | H102: PV Annual Benefit | I102: ='DMS Calc'!H131 -> 0
D103: Y2 | E103: PV Estimated Cost | F103: ='DMS Calc'!E132 -> 0 | G103: Y12 | H103: PV Estimated Cost | I103: ='DMS Calc'!H132 -> 0
D105: Y3 | E105: PV Annual Benefit | F105: ='DMS Calc'!E134 -> 0 | G105: Y13 | H105: PV Annual Benefit | I105: ='DMS Calc'!H134 -> 0
D106: Y3 | E106: PV Estimated Cost | F106: ='DMS Calc'!E135 -> 0 | G106: Y13 | H106: PV Estimated Cost | I106: ='DMS Calc'!H135 -> 0
D108: Y4 | E108: PV Annual Benefit | F108: ='DMS Calc'!E137 -> 0 | G108: Y14 | H108: PV Annual Benefit | I108: ='DMS Calc'!H137 -> 0
D109: Y4 | E109: PV Estimated Cost | F109: ='DMS Calc'!E138 -> 0 | G109: Y14 | H109: PV Estimated Cost | I109: ='DMS Calc'!H138 -> 0
D111: Y5 | E111: PV Annual Benefit | F111: ='DMS Calc'!E140 -> 0 | G111: Y15 | H111: PV Annual Benefit | I111: ='DMS Calc'!H140 -> 0
D112: Y5 | E112: PV Estimated Cost | F112: ='DMS Calc'!E141 -> 0 | G112: Y15 | H112: PV Estimated Cost | I112: ='DMS Calc'!H141 -> 0
D114: Y6 | E114: PV Annual Benefit | F114: ='DMS Calc'!E143 -> 0 | G114: Y16 | H114: PV Annual Benefit | I114: ='DMS Calc'!H143 -> 0
D115: Y6 | E115: PV Estimated Cost | F115: ='DMS Calc'!E144 -> 0 | G115: Y16 | H115: PV Estimated Cost | I115: ='DMS Calc'!H144 -> 0
D117: Y7 | E117: PV Annual Benefit | F117: ='DMS Calc'!E146 -> 0 | G117: Y17 | H117: PV Annual Benefit | I117: ='DMS Calc'!H146 -> 0
D118: Y7 | E118: PV Estimated Cost | F118: ='DMS Calc'!E147 -> 0 | G118: Y17 | H118: PV Estimated Cost | I118: ='DMS Calc'!H147 -> 0
D120: Y8 | E120: PV Annual Benefit | F120: ='DMS Calc'!E149 -> 0 | G120: Y18 | H120: PV Annual Benefit | I120: ='DMS Calc'!H149 -> 0
D121: Y8 | E121: PV Estimated Cost | F121: ='DMS Calc'!E150 -> 0 | G121: Y18 | H121: PV Estimated Cost | I121: ='DMS Calc'!H150 -> 0
D123: Y9 | E123: PV Annual Benefit | F123: ='DMS Calc'!E152 -> 0 | G123: Y19 | H123: PV Annual Benefit | I123: ='DMS Calc'!H152 -> 0
D124: Y9 | E124: PV Estimated Cost | F124: ='DMS Calc'!E153 -> 0 | G124: Y19 | H124: PV Estimated Cost | I124: ='DMS Calc'!H153 -> 0
D126: Y10 | E126: PV Annual Benefit | F126: ='DMS Calc'!E155 -> 0 | G126: Y20 | H126: PV Annual Benefit | I126: ='DMS Calc'!H155 -> 0
D127: Y10 | E127: PV Estimated Cost | F127: ='DMS Calc'!E156 -> 0 | G127: Y20 | H127: PV Estimated Cost | I127: ='DMS Calc'!H156 -> 0
G131: 20-Year Monetized Benefits = | H131: ='DMS Calc'!G158 -> 0
G132: 20-Year Estimated Costs = | H132: ='DMS Calc'!G159 -> 0
G134: Benefit-Cost Ratio = | H134: ='DMS Calc'!G161 ->  | I134: :1
G135: Return-on-Investment = | H135: ='DMS Calc'!G162 -> 
H137: Back to Links Tab

Sheet DMS Calc (hidden)
D1: =DMS!E2 -> Transportation System Management and Operations - Traffic Infrastructure Process
D2: =DMS!E3 -> Project Benefit-Cost Analysis - Dynamic Message Sign (DMS)
D3: New DMS Deployment.
D5: Region: | E5: =DMS!G6 -> -
D6: Proposed Project Name: | E6: =DMS!G7 -> -
D7: Requested By: | E7: =DMS!G8 -> -
C10: 1 | D10: What is the anticipated cost of the project? | F10: =DMS!H11 -> 0
C12: 2 | D12: What is the anticipated number of DMS to be installed for the project? | G12: =DMS!H13 -> 0
C14: 3 | D14: Provide the anticipated level of need in the vicinity of the proposed project using the following Needs Analysis Tool presets:
E15: Default TIP | F15: ='Step 1 - Project Information'!F11 -> 0
E16: Safety | F16: ='Step 1 - Project Information'!F12 -> 0
E17: Mobility (Present) | F17: ='Step 1 - Project Information'!F13 -> 0
E18: Mobility (Future) | F18: ='Step 1 - Project Information'!F14 -> 0
E19: Service | F19: ='Step 1 - Project Information'!F15 -> 0
E20: Freight Performance | F20: ='Step 1 - Project Information'!F16 -> 0
C22: 4 | D22: Estimate the average number of traffic events that occur per year that will be positively effected by use of the proposed DMS.
F23: =DMS!H82 -> 0 | G23: events per year
C25: 5 | D25: Estimate the average duration (minutes) of traffic events that occur and will be positively effected by use of the proposed DMS.
F26: =DMS!H85 -> 0 | G26: minutes
C28: 6 | D28: Estimate the average travel time savings from adjusting one's route based on direction given on the proposed DMS.
F29: =DMS!H88 -> 0 | G29: minutes
C31: 7 | D31: Provide the current directional AADT along the corridor where the proposed DMS will be deployed (the Needs Analysis Tool may be used to obtain the value).
F32: =DMS!H91 -> 0 | G32: veh per day
C35: 8 | D35: =DMS!E15 -> Please complete the Guidance Analysis below to define the intent of the project. The summary of your results is listed here:
E36: =DMS!F16 -> G1, Weather Conditions | F36: =DMS!G16 -> NOT SUPPORTED
E37: =DMS!F17 -> G2, Traffic Conditions | F37: =DMS!G17 -> NOT SUPPORTED
E38: =DMS!F18 -> G3, Traffic Control | F38: =DMS!G18 -> NOT SUPPORTED
E39: =DMS!F19 -> G4, Special Events | F39: =DMS!G19 -> NOT SUPPORTED
C41: Safety Benefits
C43: S2. | D43: How many crashes, by type, occurred in the past year at this intersection?
F44: =DMS!G74 -> 0 | G44: Fatal Injury
F45: =DMS!G75 -> 0 | G45: Suspected Serious Injury
F46: =DMS!G76 -> 0 | G46: Suspected Minor Injury
F47: =DMS!G77 -> 0 | G47: Possible Injury
F48: =DMS!G78 -> 0 | G48: Property Damage-Only
C50: S2. | D50: Guidance on Treatment of the Economic Value of Statistical Life in the US (2019) estimates plus 1.6% (2020), 7.0% (2021) the consumer price index, as per the US Bureau of Labor Statistics in the MN region (1).
F51: =PARAMETERS!E7 -> 13000000 | G51: Fatal Injury
F52: =PARAMETERS!E8 -> 1235728 | G52: Suspected Serious Injury
F53: =PARAMETERS!E9 -> 243152 | G53: Suspected Minor Injury
F54: =PARAMETERS!E10 -> 116168 | G54: Possible Injury
F55: =PARAMETERS!E11 -> 5200 | G55: Property Damage-Only
C57: S3. | D57: Average crash reduction due to DMS Deployment (14).
F58: =PARAMETERS!E14 -> 8.6 | G58: percent
C60: S4. | D60: Average theoretical number of crashes reduced at proposed intersection per severity type after DMS deployment:
F61: =F44*($F$58/100) -> 0 | G61: Fatal Injury
F62: =F45*($F$58/100) -> 0 | G62: Suspected Serious Injury
F63: =F46*($F$58/100) -> 0 | G63: Suspected Minor Injury
F64: 0 | G64: Possible Injury
F65: 0 | G65: Property Damage-Only
C67: S5. | D67: Expected safety benefit per crash severity:
F68: =(F61)*F51 -> 0 | G68: Fatal Injury
F69: =(F62)*F52 -> 0 | G69: Suspected Serious Injury
F70: =(F63)*F53 -> 0 | G70: Suspected Minor Injury
F71: 0 | G71: Possible Injury
F72: 0 | G72: Property Damage-Only
E75: Estimated Annual Safety Benefit (G1, G2, G3, G4): | F75: =IF(OR($F$36="SUPPORTED",$F$37="SUPPORTED",$F$38="SUPPORTED",$F$39="SUPPORTED"),ROUND((SUM(F68:F72)),-3),IF(OR($F$36="PARTIALLY SUPPORTED",$F$37="PARTIALLY SUPPORTED",$F$38="PARTIALLY SUPPORTED",$F$39="PARTIALLY SUPPORTED"),ROUND((SUM(F68:F72))*0.25,-3),0)) -> 0
C78: Mobility Benefits (G1, G2, G3, G4)
C80: M1. | D80: Approximate percentage of travelers who adjusted their travel routes based on information provided by DMS (14). | J80: The WI study actually says 68 and 72 percent. However, I conservatively only used the percentage of people who reported adjusting their routes more than 5 times a month.
F81: =PARAMETERS!E27 -> 18 | G81: percent
C83: M2. | D83: Average number of vehicles offered the opportunity to adjust route per event (15): | F83: =(F26/60)*F32*0.8/17 -> 0 | G83: vehicles | J83: *Assumes that 80% of traffic will occur in 17 hours of the day based on average traffic distribution provided in source.
C85: M3. | D85: Average number of travelers (vehicles) who adjust their routes per event: | F85: =F83*(F81/100) -> 0
C87: M4. | D87: Average travel time savings per event: | F87: =F85*F29 -> 0 | G87: minutes
N88: =3*1.3*(15/1.3) -> 45
C89: M5. | D89: Average travel time savings per year: | F89: =(F87*F23)/60 -> 0 | G89: hours
C91: M6. | D91: Average vehicle occupancy (6). | F91: =PARAMETERS!E23 -> 1.67 | G91: persons per vehicle | P91: =1-0.29-0.34-0.18 -> 0.19
P92: =1-0.33-0.32-0.24 -> 0.11
C93: M7. | D93: Estimated average person travel time savings per year.
F94: =F89*F91 -> 0 | G94: hours per year
C96: M8. | D96: Value of Travel Time Savings per FHWA (7). | F96: =PARAMETERS!E24 -> 20.384 | G96: per hour TTS
E98: Estimated Annual Mobility Benefit: | F98: =IF(OR($F$36="SUPPORTED",$F$37="SUPPORTED",$F$38="SUPPORTED",$F$39="SUPPORTED"),ROUND((F96)*F94,-3),IF(OR($F$36="PARTIALLY SUPPORTED",$F$37="PARTIALLY SUPPORTED",$F$38="PARTIALLY SUPPORTED",$F$39="PARTIALLY SUPPORTED"),ROUND((F96)*F94*0.25,-3),0)) -> 0
C101: Energy and Environment Benefits
C103: E1. | D103: Estimated average travel time savings per year per vehicle. Estimation assumes travel time savings is predominate during peak period weekday times.
F104: =IF(NOT(F98=0),F89,0) -> 0 | G104: hours per year
C106: E2. | D106: Average fuel consumption per minute of idle time (1). It is assumed that the reduction in fuel consumption would be based primarily on the reduction of idle time. This is conservative because there would be fuel savings due to the smoother traffic progression.
F107: =PARAMETERS!E34 -> 0.0065 | G107: gal / min
C109: E3. | D109: Average fuel consumption reduction per year. | F109: =F107*F104*60 -> 0 | G109: gallons / year
C111: E4. | D111: Average Wisconsin fuel cost (12). | F111: =PARAMETERS!E33 -> 3.31
E113: Energy and Environment Benefit Subtotal (gasoline): | F113: =F111*F109 -> 0
C115: E5. | D115: Average CO2 emitted per gallon of gasoline burned (6). | F115: =PARAMETERS!E35 -> 0.00892 | G115: metric tons per gallon
C117: E6. | D117: Average CO2 emission reduction due to the proposed project. | F117: =F115*F109 -> 0 | G117: metric tons
C119: E7. | D119: Average cost per metric ton of CO2 (16). | F119: =PARAMETERS!E36 -> 228 | G119: $ per metric ton
E121: Energy and Environment Benefit Subtotal (CO2): | F121: =F119*F117 -> 0
E123: Annual Energy and Environment Benefit: | F123: =IF(OR(F36="SUPPORTED",F37="SUPPORTED",F38="SUPPORTED",F39="SUPPORTED"),ROUND(F121+F113,-3),IF(OR(F36="PARTIALLY SUPPORTED",F37="PARTIALLY SUPPORTED",F38="PARTIALLY SUPPORTED",F39="PARTIALLY SUPPORTED"),ROUND((F121+F113)*0.25,-3),0)) -> 0
C126: Benefit-Cost Analysis
C128: Y1 | D128: Annual Benefit | E128: =F123+F98+F75 -> 0 | F128: Y11 | G128: Annual Benefit | H128: =E155/(1.07^1) -> 0
C129: Y1 | D129: Estimated Cost | E129: =DMS!H11 -> 0 | F129: Y11 | G129: Estimated Cost | H129: =E132/(1.07^10) -> 0
C131: Y2 | D131: PV Annual Benefit | E131: =E128/(1.07^1) -> 0 | F131: Y12 | G131: PV Annual Benefit | H131: =H128/(1.07^1) -> 0
C132: Y2 | D132: PV Estimated Cost | E132: =(PARAMETERS!E45*DMS!H13)/(1.07^1) -> 0 | F132: Y12 | G132: PV Estimated Cost | H132: =E132/(1.07^11) -> 0
C134: Y3 | D134: PV Annual Benefit | E134: =E131/(1.07^1) -> 0 | F134: Y13 | G134: PV Annual Benefit | H134: =H131/(1.07^1) -> 0
C135: Y3 | D135: PV Estimated Cost | E135: =E132/(1.07^2) -> 0 | F135: Y13 | G135: PV Estimated Cost | H135: =E132/(1.07^12) -> 0
C137: Y4 | D137: PV Annual Benefit | E137: =E134/(1.07^1) -> 0 | F137: Y14 | G137: PV Annual Benefit | H137: =H134/(1.07^1) -> 0
C138: Y4 | D138: PV Estimated Cost | E138: =E132/(1.07^3) -> 0 | F138: Y14 | G138: PV Estimated Cost | H138: =E132/(1.07^13) -> 0
C140: Y5 | D140: PV Annual Benefit | E140: =E137/(1.07^1) -> 0 | F140: Y15 | G140: PV Annual Benefit | H140: =H137/(1.07^1) -> 0
C141: Y5 | D141: PV Estimated Cost | E141: =E132/(1.07^4) -> 0 | F141: Y15 | G141: PV Estimated Cost | H141: =E132/(1.07^14) -> 0
C143: Y6 | D143: PV Annual Benefit | E143: =E140/(1.07^1) -> 0 | F143: Y16 | G143: PV Annual Benefit | H143: =H140/(1.07^1) -> 0
C144: Y6 | D144: PV Estimated Cost | E144: =E132/(1.07^5) -> 0 | F144: Y16 | G144: PV Estimated Cost | H144: =E132/(1.07^15) -> 0
C146: Y7 | D146: PV Annual Benefit | E146: =E143/(1.07^1) -> 0 | F146: Y17 | G146: PV Annual Benefit | H146: =H143/(1.07^1) -> 0
C147: Y7 | D147: PV Estimated Cost | E147: =E132/(1.07^6) -> 0 | F147: Y17 | G147: PV Estimated Cost | H147: =E132/(1.07^16) -> 0
C149: Y8 | D149: PV Annual Benefit | E149: =E146/(1.07^1) -> 0 | F149: Y18 | G149: PV Annual Benefit | H149: =H146/(1.07^1) -> 0
C150: Y8 | D150: PV Estimated Cost | E150: =E132/(1.07^7) -> 0 | F150: Y18 | G150: PV Estimated Cost | H150: =E132/(1.07^17) -> 0
D151: 7
C152: Y9 | D152: PV Annual Benefit | E152: =E149/(1.07^1) -> 0 | F152: Y19 | G152: PV Annual Benefit | H152: =H149/(1.07^1) -> 0
C153: Y9 | D153: PV Estimated Cost | E153: =E132/(1.07^8) -> 0 | F153: Y19 | G153: PV Estimated Cost | H153: =E132/(1.07^18) -> 0
C155: Y10 | D155: PV Annual Benefit | E155: =E152/(1.07^1) -> 0 | F155: Y20 | G155: PV Annual Benefit | H155: =H152/(1.07^1) -> 0
C156: Y10 | D156: PV Estimated Cost | E156: =E132/(1.07^9) -> 0 | F156: Y20 | G156: PV Estimated Cost | H156: =E132/(1.07^19) -> 0
F158: 20-Year Monetized Benefits = | G158: =E128+E131+E134+E137+E140+E143+E146+E149+E152+H128+E148+H131+H134+H137+H140+H143+H146+H149+H152+E155+H155 -> 0
F159: 20-Year Estimated Costs = | G159: =E129+E132+E135+E138+E141+E144+E147+E150+E153+H129+E149+H132+H135+H138+H141+H144+H147+H150+H153+E156+H156 -> 0
F161: Benefit-Cost Ratio = | G161: =G158/G159 ->  | H161: :1
F162: Return-on-Investment = | G162: =(G158-G159)/G159 -> 
D186: 7
D222: 7
D258: 7
D294: 7

Sheet CCTV (hidden)
E2: Transportation System Management and Operations - Traffic Infrastructure Process
E3: Project Benefit-Cost Analysis - CCTV Camera
F6: Region: | G6: =IF('Step 1 - Project Information'!E5=0, "-",'Step 1 - Project Information'!E5) -> -
F7: Proposed Project Name: | G7: =IF('Step 1 - Project Information'!E6=0, "-",'Step 1 - Project Information'!E6) -> -
F8: Requested By: | G8: =IF('Step 1 - Project Information'!E7=0, "-",'Step 1 - Project Information'!E7) -> -
D10: 1 | E10: What is the anticipated cost of the project?
D13: 2 | E13: What is the anticipated number of cameras to be installed for the project?
D16: 3 | E16: Please complete the guidance analysis below. If more than one camera is being requested, it is recommended that each location is considered separately because there may be different responses to the questions below. However, if multiple camera locations are included in this analysis, respond to each question collectively. Based on your responses , the following CCTV Camera Guidance have been met:
F17: G1, Signal Control | G17: =J33 -> NOT SUPPORTED
F18: G2, Traffic Incident | G18: =J45 -> NOT SUPPORTED
F19: G3, Weather Verification | G19: =J54 -> NOT SUPPORTED
F20: G4, Traveler Information | G20: =J62 -> NOT SUPPORTED
F21: G5, Field Device Verification | G21: =J69 -> NOT SUPPORTED
F22: G6, Work Zone | G22: =J76 -> NOT SUPPORTED
C24: CCTV Camera Guidance Analysis:
C25: The ITS Planning Guidance below was completed by an ENTERPRISE Pooled Fund Study and is used here to help define the intent of the proposed camera.
D27: CCTV Guidance #1 - Traffic Observation for Signal Control Changes
D29: Consideration | J29: Response
D30: 1 | E30: There are typically periods of time at least twice per week of ‘loaded’ cycles (i.e. where the vehicles in the queue do not all dissipate in one green cycle) that last 15 minutes or longer.
D31: 2 | E31: The signalized intersection has sufficient cross street traffic such that visual observation is needed determining if alternate signal timings are appropriate to benefit the primary direction of flow (i.e. in order to verify that the secondary street is not backing up).
D32: 3 | E32: The operations personnel have the ability to activate special event timing plans remotely.
D33: CCTV Guidance #1 is: | J33: =IF(OR(J30="YES",J31="YES",J32="YES"),"SUPPORTED", "NOT SUPPORTED") -> NOT SUPPORTED
D35: CCTV Guidance #2 - Traffic Incident or Event Verification
D37: Consideration | J37: Response
D38: 1 | E38: The candidate location encounters incidents as frequently as twice per month for arterial streets or once per month for freeways.
D39: 2 | E39: The incidents and events that occur on freeways typically cause delay to travelers of at least 15 minutes while the incident is active and has not been cleared.
D40: 3 | E40: The incidents and events that occur on arterials typically impact travel such that the signal progression is no longer occurring and vehicles in queues are unable to clear intersections during the cycle's allotted green time.
D41: 4 | E41: Incident location verification is needed by 911 dispatchers (e.g. large complex interchange where drivers don't know where they are, closely spaced interchanges).
D42: 5 | E42: The location encounters at least 2 hours per day of peak period travel where traffic flow exceeds 1,100 veh/hr/lane.
D43: 6 | E43: The location encounters conditions considered Level of Service C.
D44: 7 | E44: The location encounters average annual daily traffic (AADT) of 16,800 for a 2 lane road; 33,600 for a 4 lane road; 50,400 for a 6 lane road, 67,200 for an 8 lane road.
D45: CCTV Guidance #2 is: | J45: =IF(OR(J38="YES",J39="YES",J40="YES",J41="YES"),"SUPPORTED",IF(AND(J42="YES",J43="YES",J44="YES"), "SUPPORTED", IF(OR(J42="YES",J43="YES",J44="YES"), "PARTIALLY SUPPORTED","NOT SUPPORTED"))) -> NOT SUPPORTED
D47: CCTV Guidance #3 - Weather Verification
D48: Consideration | J48: Response
D49: 1 | E49: The location typically encounters at least 10 weather events each season.
D50: 2 | E50: Weather events have a significant impact to travelers at this location (due to such circumstances as either: local terrain, lack of alternate routes, winding or steep routes), and it is a location that travelers are frequently concerned about.
D51: 3 | E51: If there are no nearby weather sensors reporting real-time conditions.
D52: 4 | E52: If there are no regular manual observations and reports of visibility, precipitation, or pavement temperatures.
D53: 5 | E53: If nearby weather sensors would be enhanced through the capability of visual observation.
D54: CCTV Guidance #3 is: | J54: =IF(OR(J49="YES",J50="YES"),"SUPPORTED",IF(OR(J51="YES",J52="YES",J53="YES"),"PARTIALLY SUPPORTED","NOT SUPPORTED")) -> NOT SUPPORTED
D56: CCTV Guidance #4 - Traveler Information
D57: Consideration | J57: Response
D58: 1 | E58: The location visible by the camera image has a history of congestion on a regular basis (i.e. each commuter day is a candidate for congestion).
D59: 2 | E59: The location is prone to weather situations that travelers would not otherwise be forewarned about (e.g. spots where fog regularly forms, bridges that ice early, mountain passes with weather that differs from approaches).
D60: 3 | E60: The location is in a remote area that receives considerable traffic volume due to commercial vehicle traffic or recreational traffic.
D61: 4 | E61: The majority of travelers to the area have Internet access in proximity to the area where camera images are of value to travelers prior to departure.
D62: CCTV Guidance #4 is: | J62: =IF(OR(J58="YES",J59="YES"),"SUPPORTED", IF(OR(J61="YES",J60="YES"), "PARTIALLY SUPPORTED","NOT SUPPORTED")) -> NOT SUPPORTED
D64: CCTV Guidance #5 - Field Device Verification
D65: Consideration | J65: Response
D66: 1 | E66: The proper operations of the device can be remotely monitored by a camera.
D67: 2 | E67: The failure of the device presents a safety hazard.
D68: 3 | E68: The camera operation would avoid unnecessary trips to verify functionality of the field device.
D69: CCTV Guidance #5 is: | J69: =IF(OR(J66="YES",J67="YES",J68="YES"),"SUPPORTED","NOT SUPPORTED") -> NOT SUPPORTED
D71: CCTV Guidance #6 - Intelligent Work Zone
D72: Consideration | J72: Response
D73: 1 | E73: The alignment or traffic control that is visible by a camera image is expected to change periodically during the construction period.
D74: 2 | E74: The construction zone encounters periods of queues or delays for at least 30 minutes each day.
D75: 3 | E75: The construction zone is in a location where there is not a convenient alternate route for the majority of traffic to deviate from the typical route.
D76: CCTV Guidance #6 is: | J76: =IF(AND(J73="YES",J75="YES"),"SUPPORTED",IF(J74="YES","SUPPORTED",IF(OR(J73="YES",J75="YES"),"PARTIALLY SUPPORTED","NOT SUPPORTED"))) -> NOT SUPPORTED
D79: 4 | E79: Using each of the following Needs Analysis Tool presets, provide the anticipated level of need in the vicinity of the proposed project (Project Information sheet will populate these cells):
F80: Default TIP | G80: =IF('Step 1 - Project Information'!F11=0,"-",'Step 1 - Project Information'!F11) -> -
F81: Safety | G81: =IF('Step 1 - Project Information'!F12=0,"-",'Step 1 - Project Information'!F12) -> -
F82: Mobility (Present) | G82: =IF('Step 1 - Project Information'!F13=0,"-",'Step 1 - Project Information'!F13) -> -
F83: Mobility (Future) | G83: =IF('Step 1 - Project Information'!F14=0,"-",'Step 1 - Project Information'!F14) -> -
F84: Service | G84: =IF('Step 1 - Project Information'!F15=0,"-",'Step 1 - Project Information'!F15) -> -
F85: Freight Performance | G85: =IF('Step 1 - Project Information'!F16=0,"-",'Step 1 - Project Information'!F16) -> -
C87: Safety Benefits
D89: S1. | E89: How many crashes, by severity type, occurred in the past year at this intersection or corridor? If using the Needs Analysis Tool to obtain crash data, divide the 5 year crashes by 5 to provide an average annual number of crashes.
I90: Fatal Injury
I91: Suspected Serious Injury
I92: Suspected Minor Injury
I93: Possible Injury
I94: Property Damage-Only
G96: Estimated Safety Benefit: | H96: ='CCTV Calc'!F75+'CCTV Calc'!F76 -> 0
C99: Mobility Benefits
D101: M1 (G1,G2, G3, G4, G6). | E101: What is the estimated AADT for all vehicles entering the intersection (the Needs Analysis Tool may be used to obtain the value - note that volume is reported per roadway and not bi-directional)?
I102: vehicles per day
D104: M2 (G1). | E104: What is the average Relative Need at this intersection according to the Needs Analysis Tool - Service preset?
D107: M1 (G2, G3, G4, G6). | E107: Estimate the average number of traffic events that occur per year within site distance of the proposed camera(s).
I108: events per year
D110: M2 (G2, G3, G4, G6). | E110: Estimate the average duration (minutes) of the traffic events that occur within site distance of the proposed camera.
I111: minutes
G113: Estimated Annual Mobility Benefit: | H113: ='CCTV Calc'!F135+'CCTV Calc'!F136 -> 0
C116: Productivity Benefits
D118: P1. | E118: It is assumed that productivity benefits will be realized through reduced maintenance efforts / verification site visits (i.e. if a camera can be used to verify the location of debris or verify functionality of traffic signal). Estimate for how long maintenance efforts / verification site visits have been increasing at the proposed device replacement location(s).
D120: P2. | E120: How many TOAMS tickets have been required at this location over the length of time indicated above in P1? (if request is for multiple intersections, include cumulative total here).
I121: tickets
D122: P3. | E122: What was the total cost of these tickets?
D125: P4. | E125: What is the anticipated percent reduction of maintenance tickets due to the proposed project?
G128: Estimated Annual Productivity Benefit: | H128: ='CCTV Calc'!F154 -> 0
C131: Benefit-Cost Analysis
D133: Y1 | E133: Annual Benefit | F133: ='CCTV Calc'!E186 -> 0 | G133: Y6 | H133: PV Annual Benefit | I133: ='CCTV Calc'!H186 -> 0
D134: Y1 | E134: Estimated Cost | F134: ='CCTV Calc'!E187 -> 0 | G134: Y6 | H134: PV Estimated Cost | I134: ='CCTV Calc'!H187 -> 0
D136: Y2 | E136: PV Annual Benefit | F136: ='CCTV Calc'!E189 -> 0 | G136: Y7 | H136: PV Annual Benefit | I136: ='CCTV Calc'!H189 -> 0
D137: Y2 | E137: PV Estimated Cost | F137: ='CCTV Calc'!E190 -> 0 | G137: Y7 | H137: PV Estimated Cost | I137: ='CCTV Calc'!H190 -> 0
D139: Y3 | E139: PV Annual Benefit | F139: ='CCTV Calc'!E192 -> 0 | G139: Y8 | H139: PV Annual Benefit | I139: ='CCTV Calc'!H192 -> 0
D140: Y3 | E140: PV Estimated Cost | F140: ='CCTV Calc'!E193 -> 0 | G140: Y8 | H140: PV Estimated Cost | I140: ='CCTV Calc'!H193 -> 0
D142: Y4 | E142: PV Annual Benefit | F142: ='CCTV Calc'!E195 -> 0 | G142: Y9 | H142: PV Annual Benefit | I142: ='CCTV Calc'!H195 -> 0
D143: Y4 | E143: PV Estimated Cost | F143: ='CCTV Calc'!E196 -> 0 | G143: Y9 | H143: PV Estimated Cost | I143: ='CCTV Calc'!H196 -> 0
D145: Y5 | E145: PV Annual Benefit | F145: ='CCTV Calc'!E198 -> 0 | G145: Y10 | H145: PV Annual Benefit | I145: ='CCTV Calc'!H198 -> 0
D146: Y5 | E146: PV Estimated Cost | F146: ='CCTV Calc'!E199 -> 0 | G146: Y10 | H146: PV Estimated Cost | I146: ='CCTV Calc'!H199 -> 0
G149: 10-Year Monetized Benefits = | H149: ='CCTV Calc'!G201 -> 0
G150: 10-Year Estimated Costs = | H150: ='CCTV Calc'!G202 -> 0
G152: Benefit-Cost Ratio = | H152: ='CCTV Calc'!G204 ->  | I152: :1
G153: Return-on-Investment = | H153: ='CCTV Calc'!G205 -> 
H155: Back to Links Tab

Sheet CCTV Calc (hidden)
D1: Transportation System Management and Operations
D2: Project Benefit-Cost Analysis - CCTV Camera
E5: Region: | F5: ='Step 1 - Project Information'!E5 -> 0
E6: Proposed Project Name: | F6: ='Step 1 - Project Information'!E6 -> 0
E7: Requested By: | F7: ='Step 1 - Project Information'!E7 -> 0
C10: 1 | D10: What is the anticipated cost of the project?
F11: =CCTV!G11 -> 0
C12: 2 | D12: Provide the anticipated level of need in the vicinity of the proposed project using the following Needs Analysis Tool presets:
E13: Default TIP | F13: ='Step 1 - Project Information'!F11 -> 0
E14: Safety | F14: ='Step 1 - Project Information'!F12 -> 0
E15: Mobility (Present) | F15: ='Step 1 - Project Information'!F13 -> 0
E16: Mobility (Future) | F16: ='Step 1 - Project Information'!F14 -> 0
E17: Service | F17: ='Step 1 - Project Information'!F15 -> 0
E18: Freight Performance | F18: ='Step 1 - Project Information'!F16 -> 0
C21: 3 | D21: Please complete the Guidance Analysis below to define the intent of the project. The summary of your results is listed here:
E22: G1, Signal Control | F22: =CCTV!G17 -> NOT SUPPORTED | J22: signal timing
E23: G2, Traffic Incident | F23: =CCTV!G18 -> NOT SUPPORTED | J23: incident management if fully supported; 25% of benefits if partially supported
E24: G3, Weather Verification | F24: =CCTV!G19 -> NOT SUPPORTED | J24: incident management if fully supported; 25% of benefits if partially supported
E25: G4, Traveler Information | F25: =CCTV!G20 -> NOT SUPPORTED | J25: incident management if fully supported; 25% of benefits if partially supported
E26: G5, Field Device Verification | F26: =CCTV!G21 -> NOT SUPPORTED | J26: productivity
E27: G6, Workzone | F27: =CCTV!G22 -> NOT SUPPORTED | J27: work zone
C30: Safety Benefits (W1, W2, W3, W6)
C32: S2. | D32: How many crashes, by severity, occurred in the past year at this intersection?
F33: =CCTV!H90 -> 0 | G33: Fatal Injury
F34: =CCTV!H91 -> 0 | G34: Suspected Serious Injury
F35: =CCTV!H92 -> 0 | G35: Suspected Minor Injury
F36: =CCTV!H93 -> 0 | G36: Possible Injury
F37: =CCTV!H94 -> 0 | G37: Property Damage-Only
C39: S2. | D39: Guidance on Treatment of the Economic Value of Statistical Life in the US (2019) estimates plus 1.6% (2020), 7.0% (2021) the consumer price index, as per the US Bureau of Labor Statistics in the MN region (1).
F40: =PARAMETERS!E7 -> 13000000 | G40: Fatal Injury
F41: =PARAMETERS!E8 -> 1235728 | G41: Suspected Serious Injury
F42: =PARAMETERS!E9 -> 243152 | G42: Suspected Minor Injury
F43: =PARAMETERS!E10 -> 116168 | G43: Possible Injury
F44: =PARAMETERS!E11 -> 5200 | G44: Property Damage-Only
C46: S3 (G1). | D46: Average crash reduction due to signal retiming (3).
F47: =PARAMETERS!E15 -> 31 | G47: percent
C49: S3 (G2, G3, G6). | D49: Average percent of crashes that are secondary crashes (5).
F50: =PARAMETERS!E17 -> 1 | G50: percent
C51: S3.1 (G2, G3, G6). | D51: Average percent reduction of secondary crashes (5).
F52: =PARAMETERS!E18 -> 40 | G52: percent | J52: *found to reduce secondary crashes by 30 - 50 percent. We have taken an average.
C54: S4 (G1). | D54: Average theoretical number of reduced crashes at proposed intersection per severity type after signal re-timing.
F55: =F33*(($F$47/100)) -> 0 | G55: Fatal Injury
F56: =F34*(($F$47/100)) -> 0 | G56: Suspected Serious Injury
F57: =F35*(($F$47/100)) -> 0 | G57: Suspected Minor Injury
F58: =F36*(($F$47/100)) -> 0 | G58: Possible Injury
F59: =F37*(($F$47/100)) -> 0 | G59: Property Damage-Only
C61: S5 (G1). | D61: Expected safety benefit per crash severity type.
F62: =(F55)*F40 -> 0 | G62: Fatal Injury
F63: =(F56)*F41 -> 0 | G63: Suspected Serious Injury
F64: =(F57)*F42 -> 0 | G64: Suspected Minor Injury
F65: =(F58)*F43 -> 0 | G65: Possible Injury
F66: =(F59)*F44 -> 0 | G66: Property Damage-Only
C68: S5 (G2, G3, G6). | D68: Expected safety benefit per crash severity type.
F69: =F33*($F$50/100)*($F$52/100)*F40 -> 0 | G69: Fatal Injury
F70: =F34*($F$50/100)*($F$52/100)*F41 -> 0 | G70: Suspected Serious Injury
F71: =F35*($F$50/100)*($F$52/100)*F42 -> 0 | G71: Suspected Minor Injury
F72: =F36*($F$50/100)*($F$52/100)*F43 -> 0 | G72: Possible Injury
F73: =F37*($F$50/100)*($F$52/100)*F44 -> 0 | G73: Property Damage-Only
E75: Estimated Annual Safety Benefit (G1): | F75: =IF(AND(SUM(F62:F66)>0,NOT(F22="NOT SUPPORTED")),ROUND(SUM(F62:F66),-3),0) -> 0
E76: Estimated Annual Safety Benefit (G2, G3, G6): | F76: =IF(AND(SUM(F69:F73)>0,OR(F23="SUPPORTED",F24="SUPPORTED",F27="SUPPORTED")),ROUND(SUM(F69:F73),-3),IF(AND(SUM(F69:F73)>0,OR(F23="PARTIALLY SUPPORTED",F24="PARTIALLY SUPPORTED",F27="SUPPORTED")),ROUND(SUM(F69:F73)*0.25,-3),0)) -> 0
C79: Mobility Benefits (G1, G2, G3, G4, G6)
C81: M1 (G1). | D81: What is the estimated ADT for all vehicles entering the intersection?
F82: =CCTV!H102 -> 0 | G82: hours per AM or PM peak
C84: M2 (G1). | D84: What is the average Relative Need at this intersection according to the Needs Assessment Tool - Service preset?
F85: =CCTV!H105 -> 0
C87: M3 (G1). | D87: Average delay per vehicle at current Relative Need (s): | F87: =VLOOKUP(F85,'DROP-DOWNS'!$AP$2:$AQ$5,2,0) ->  | G87: sec
C89: M4 (G1). | D89: Average delay reduction due to signal retiming (3). | F89: =PARAMETERS!E26 -> 27.2 | G89: percent reduction
C91: M5 (G1). | D91: Average delay per vehicle at future LOS (s). | F91: =F87-F89/100*F87 ->  | G91: sec
C93: M6 (G1). | D93: Average delay reduction per vehicle (s). | F93: =F87-F91 ->  | G93: sec
C95: M7 (G1). | D95: Estimated volume impacted by delay reduction. | F95: =0.1*F82 -> 0 | G95: vehicles per day
D96: Assumes 10% of ADT during worst hour.
C98: M8 (G1). | D98: Average vehicle occupancy (6). | F98: =PARAMETERS!E23 -> 1.67 | G98: persons per vehicle
C100: M9 (G1). | D100: Estimated average travel time savings per year per vehicle. Estimation assumes travel time savings is predominate during peak period weekday times.
F101: =F95*5*52*F93/3600 ->  | G101: vehicle hours per year | J101: veh/day * days/week * weeks/year * s * 1 hr/3600 s
C103: M10 (G1). | D103: Value of Travel Time Savings per FHWA (7) | F103: =PARAMETERS!E24 -> 20.384 | G103: per hour TTS
E105: Estimated Annual Mobility Benefit (G1): | F105: =IF(F22="SUPPORTED",ROUND((F103)*F101*F98,-3),0) -> 0
C107: M1 (W2, W3, W4, W6). | D107: Estimate the average number of traffic events that occur per year within site distance of the proposed camera.
F108: =CCTV!H108 -> 0 | G108: events per year
C110: M2 (W2, W3, W4, W6). | D110: Estimate the average duration (minutes) of the traffic events that occur within site distance of the proposed camera.
F111: =CCTV!H111 -> 0 | G111: minutes
C113: M3 (W2, W3, W4, W6). | D113: Provide the current AADT along the corridor where the proposed camera will be deployed (the Needs Analysis Tool may be used to obtain the value).
F114: =CCTV!H102 -> 0 | G114: veh per day
C116: M4 (W2, W3, W4, W6). | D116: Average percent reduced incident duration due to incident management (5).
F117: =PARAMETERS!E28 -> 37.25 | G117: percent reduction
C119: M5 (W2, W3, W4, W6). | D119: Average reduced incident duration due to incident management per event.
F120: =F111*(F117/100) -> 0 | G120: min per incident
C122: M6 (W2, W3, W4, W6). | D122: Average number of vehicles positively affected by the reduction of incident duration (i.e. number of vehicles that can be expected to be within the corridor during the reduced duration period) (15): | J122: *Assumes that 80% of traffic will occur in 17 hours of the day based on average traffic distribution provided in source.
F123: =(F120/60)*F114*0.8/17 -> 0 | G123: vehicles per incident
C125: M7 (W2, W3, W4, W6). | D125: Average vehicle occupancy (6). | F125: =[1]PARAMETERS!J8 -> 1.67 | G125: persons per vehicle
C127: M8 (W2, W3, W4, W6). | D127: Average total time savings per vehicle due to incident management in this location per year.
F128: =(F123*F120*F108)/60 -> 0 | G128: hours per year
C130: M9 (W2, W3, W4, W6). | D130: Value of Travel Time Savings per FHWA (7). | F130: =[1]PARAMETERS!J9 -> 19.459448 | G130: per hour TTS
E132: Estimated Annual Mobility Benefit (G2, G3, G4, G6): | F132: =IF(OR(F23="SUPPORTED",F24="SUPPORTED",F25="SUPPORTED",F27="SUPPORTED"),ROUND(F128*F130*F125,-3),IF(OR(F23="SUPPORTED",F24="SUPPORTED",F25="SUPPORTED",F27="SUPPORTED"), ROUND(F128*F130*F125*0.25,-3),0)) -> 0
E135: Estimated Annual Mobility Benefit (G1): | F135: =F105 -> 0
E136: Estimated Annual Mobility Benefit (G2, G3, G4, G6): | F136: =F132 -> 0
C139: Productivity Benefits (W5)
C141: P1. | D141: It is assumed that productivity benefits will be realized through reduced maintenance efforts. Estimate for how long maintenance efforts have been increasing at the proposed device replacement location(s).
F142: =CCTV!H119 -> 0
F143: =IF(F142="3 years",3,IF(F142="6 months",0.5,1)) -> 1
C145: P2. | D145: How many Cartegraph tickets have been required at this location over the length of time indicated above in P1? (if request is for multiple intersections, include cumulative total here)
F146: =CCTV!H121 -> 0 | G146: tickets
C147: P3. | D147: What was the total cost of these tickets?
F148: =CCTV!H123 -> 0
C150: P8. | D150: What is the anticipated percent reduction of maintenance tickets due to the proposed project?
F151: =CCTV!H126 -> 0 | G151: percent
F152: =VLOOKUP(F151,'DROP-DOWNS'!AC2:AD7,2,0) -> 
E154: Estimated Annual Productivity Benefit: | F154: =IF(F26="NOT SUPPORTED",0,IF(F26="SUPPORTED",(F148/F143)*(F152/100),IF(F26="PARTIAL SUPPORTED",0.25*((F148/F143)*(F152/100)),0))) -> 0
C157: Energy and Environment Benefits (G1, G2, G3, G4, G6)
C159: E1. | D159: Estimated average travel time savings per year. Estimation assumes travel time savings is predominate during peak period weekday times.
E160: G1 TTS | F160: =IF(F22="SUPPORTED",F101,IF(F22="PARTIALLY SUPPORTED",0.25*F101,0)) -> 0 | G160: hours per year
E161: G2, G3, G4, G6 TTS | F161: =IF(OR(F23="SUPPORTED",F24="SUPPORTED",F25="SUPPORTED",F27="SUPPORTED"),F128,IF(OR(F23="PARTIALLY SUPPORTED",F24="PARTIALLY SUPPORTED",F25="PARTIALLY SUPPORTED",F27="PARTIALLY SUPPORTED"),0.25*F128,0)) -> 0 | G161: hours per year
E162: Total TTS | F162: =F161+F160 -> 0 | G162: hours per year
C164: E2. | D164: Average fuel consumption per minute of idle time (18). It is assumed that the reduction in fuel consumption would be based primarily on the reduction of idle time. This is conservative because there would be fuel savings due to the smoother traffic progression.
F165: =PARAMETERS!E34 -> 0.0065 | G165: gal / min
C167: E3. | D167: Average fuel consumption reduction per year. | F167: =F165*F162*60 -> 0 | G167: gallons / year
C169: E4. | D169: Average Wisconsin fuel cost (12). | F169: =PARAMETERS!E33 -> 3.31 | G169: $ per gallon
E171: Energy and Environment Benefit Subtotal: | F171: =F169*F167 -> 0
C173: E5. | D173: Average CO2 emitted per gallon of gasoline burned (6). | F173: =PARAMETERS!E35 -> 0.00892 | G173: metric tons per gallon
C175: E6. | D175: Average CO2 emission reduction due to the proposed project. | F175: =F173*F167 -> 0 | G175: metric tons
C177: E7. | D177: Average cost per metric ton of CO2 (16). | F177: =PARAMETERS!E36 -> 228 | G177: $ per metric ton
E179: Energy and Environment Benefit Subtotal: | F179: =F177*F175 -> 0
E181: Energy and Environment Benefit: | F181: =IF(SUM(F135:F136)>0,F179+F171,0) -> 0
C184: Benefit-Cost Analysis
C186: Y1 | D186: Annual Benefit | E186: =F75+F76+F135+F136+F154+F181 -> 0 | F186: Y6 | G186: PV Annual Benefit | H186: =E198/(1.07^1) -> 0
C187: Y1 | D187: Estimated Cost | E187: =CCTV!G11 -> 0 | F187: Y6 | G187: PV Estimated Cost | H187: =E190/(1.07^5) -> 0
C189: Y2 | D189: PV Annual Benefit | E189: =E186/(1.07^1) -> 0 | F189: Y7 | G189: PV Annual Benefit | H189: =H186/(1.07^1) -> 0
C190: Y2 | D190: PV Estimated Cost | E190: =(PARAMETERS!E46*CCTV!G14)/(1.07^1) -> 0 | F190: Y7 | G190: PV Estimated Cost | H190: =E190/(1.07^6) -> 0
C192: Y3 | D192: PV Annual Benefit | E192: =E189/(1.07^1) -> 0 | F192: Y8 | G192: PV Annual Benefit | H192: =H189/(1.07^1) -> 0
C193: Y3 | D193: PV Estimated Cost | E193: =E190/(1.07^2) -> 0 | F193: Y8 | G193: PV Estimated Cost | H193: =E190/(1.07^7) -> 0
C195: Y4 | D195: PV Annual Benefit | E195: =E192/(1.07^1) -> 0 | F195: Y9 | G195: PV Annual Benefit | H195: =H192/(1.07^1) -> 0
C196: Y4 | D196: PV Estimated Cost | E196: =E190/(1.07^3) -> 0 | F196: Y9 | G196: PV Estimated Cost | H196: =E190/(1.07^8) -> 0
C198: Y5 | D198: PV Annual Benefit | E198: =E195/(1.07^1) -> 0 | F198: Y10 | G198: PV Annual Benefit | H198: =H195/(1.07^1) -> 0
C199: Y5 | D199: PV Estimated Cost | E199: =E190/(1.07^4) -> 0 | F199: Y10 | G199: PV Estimated Cost | H199: =E190/(1.07^9) -> 0
F201: 20-Year Monetized Benefits = | G201: =SUM(E186,E189,E192,E195,E198,H186,H189,H192,H195,H198) -> 0
F202: 20-Year Estimated Costs = | G202: =SUM(E187,E190,E193,E196,E199,H187,H190,H193,H196,H199) -> 0
F204: Benefit-Cost Ratio = | G204: =G201/G202 ->  | H204: :1
F205: Return-on-Investment = | G205: =(G201-G202)/G202 -> 

Sheet TRAWS (hidden)
D2: Transportation System Management and Operations - Traffic Infrastructure Process
D3: Project Benefit-Cost Analysis - TRAWS
F5: Region: | G5: =IF('Step 1 - Project Information'!E5=0, "-",'Step 1 - Project Information'!E5) -> -
F6: Proposed Project Name: | G6: =IF('Step 1 - Project Information'!E6=0, "-",'Step 1 - Project Information'!E6) -> -
F7: Proposed Project Benefit Analyst: | G7: =IF('Step 1 - Project Information'!E7=0, "-",'Step 1 - Project Information'!E7) -> -
D10: 1 | E10: What is the expected design and present value construction cost (total project cost)?
D13: 2 | E13: What is the anticipated number of TRAWS sites to be installed for the project?
D16: 3 | E16: Provide the anticipated level of need in the vicinity of the proposed project using the following Needs Analysis Tool presets:
F17: Default TIP | G17: =IF('Step 1 - Project Information'!F11=0,"-",'Step 1 - Project Information'!F11) -> -
F18: Safety | G18: =IF('Step 1 - Project Information'!F12=0,"-",'Step 1 - Project Information'!F12) -> -
F19: Mobility (Present) | G19: =IF('Step 1 - Project Information'!F13=0,"-",'Step 1 - Project Information'!F13) -> -
F20: Mobility (Future) | G20: =IF('Step 1 - Project Information'!F14=0,"-",'Step 1 - Project Information'!F14) -> -
F21: Service | G21: =IF('Step 1 - Project Information'!F15=0,"-",'Step 1 - Project Information'!F15) -> -
F22: Freight Performance | G22: =IF('Step 1 - Project Information'!F16=0,"-",'Step 1 - Project Information'!F16) -> -
C24: Safety Benefits
D25: S1. | E25: How many crashes, by severity, occurred in the past year at this intersection or corridor? If using the Needs Analysis Tool to obtain crash data, divide the 5 year crashes by 5 to provide an average annual number of crashes.
H26: Fatal Injury
H27: Suspected Serious Injury
H28: Suspected Minor Injury
H29: Possible Injury
H30: Property Damage-Only
F32: Estimated Annual Safety Benefit: | G32: ='TRAWS Calc'!F56 -> 0
C37: Benefit-Cost Analysis
D39: Y1 | E39: Annual Benefit | F39: ='TRAWS Calc'!E60 -> 0 | G39: Y6 | H39: PV Annual Benefit | I39: ='TRAWS Calc'!$H$60 -> 0
D40: Y1 | E40: Estimated Cost | F40: ='TRAWS Calc'!E61 -> 0 | G40: Y6 | H40: PV Estimated Cost | I40: ='TRAWS Calc'!$H$61 -> 0
D42: Y2 | E42: PV Annual Benefit | F42: ='TRAWS Calc'!E63 -> 0 | G42: Y7 | H42: PV Annual Benefit | I42: ='TRAWS Calc'!$H$63 -> 0
D43: Y2 | E43: PV Estimated Cost | F43: ='TRAWS Calc'!E64 -> 0 | G43: Y7 | H43: PV Estimated Cost | I43: ='TRAWS Calc'!$H$64 -> 0
D45: Y3 | E45: PV Annual Benefit | F45: ='TRAWS Calc'!E66 -> 0 | G45: Y8 | H45: PV Annual Benefit | I45: ='TRAWS Calc'!$H$66 -> 0
D46: Y3 | E46: PV Estimated Cost | F46: ='TRAWS Calc'!E67 -> 0 | G46: Y8 | H46: PV Estimated Cost | I46: ='TRAWS Calc'!$H$67 -> 0
D48: Y4 | E48: PV Annual Benefit | F48: ='TRAWS Calc'!E69 -> 0 | G48: Y9 | H48: PV Annual Benefit | I48: ='TRAWS Calc'!$H$69 -> 0
D49: Y4 | E49: PV Estimated Cost | F49: ='TRAWS Calc'!E70 -> 0 | G49: Y9 | H49: PV Estimated Cost | I49: ='TRAWS Calc'!$H$70 -> 0
D51: Y5 | E51: PV Annual Benefit | F51: ='TRAWS Calc'!E72 -> 0 | G51: Y10 | H51: PV Annual Benefit | I51: ='TRAWS Calc'!$H$72 -> 0
D52: Y5 | E52: PV Estimated Cost | F52: ='TRAWS Calc'!E73 -> 0 | G52: Y10 | H52: PV Estimated Cost | I52: ='TRAWS Calc'!$H$73 -> 0
G55: 10-Year Monetized Benefits = | H55: ='TRAWS Calc'!G76 -> 0
G56: 10-Year Estimated Costs = | H56: ='TRAWS Calc'!G77 -> 0
G58: Benefit-Cost Ratio = | H58: ='TRAWS Calc'!G79 ->  | I58: :1
G59: Return-on-Investment = | H59: ='TRAWS Calc'!G80 -> 
H61: Back to Links Tab

Sheet TRAWS Calc (hidden)
D1: =DMS!E2 -> Transportation System Management and Operations - Traffic Infrastructure Process
D2: =TRAWS!D3 -> Project Benefit-Cost Analysis - TRAWS
E5: Region: | F5: ='Step 1 - Project Information'!E5 -> 0
E6: Proposed Project Name: | F6: ='Step 1 - Project Information'!E6 -> 0
E7: Requested By: | F7: ='Step 1 - Project Information'!E7 -> 0
C10: 1 | D10: What is the anticipated cost of the project? | F10: =TRAWS!G11 -> 0
C12: 2 | D12: Provide the anticipated level of need in the vicinity of the proposed project using the following Needs Analysis Tool presets:
E13: Default TIP | F13: ='Step 1 - Project Information'!F11 -> 0
E14: Safety | F14: ='Step 1 - Project Information'!F12 -> 0
E15: Mobility (Present) | F15: ='Step 1 - Project Information'!F13 -> 0
E16: Mobility (Future) | F16: ='Step 1 - Project Information'!F14 -> 0
E17: Service | F17: ='Step 1 - Project Information'!F15 -> 0
E18: Freight Performance | F18: ='Step 1 - Project Information'!F16 -> 0
C23: Safety Benefits
C25: S1. | D25: How many crashes, by severity, occurred in the past year at this intersection?
F26: =TRAWS!G26 -> 0 | G26: Fatal Injury
F27: =TRAWS!G27 -> 0 | G27: Suspected Serious Injury
F28: =TRAWS!G28 -> 0 | G28: Suspected Minor Injury
F29: =TRAWS!G29 -> 0 | G29: Possible Injury
F30: =TRAWS!G30 -> 0 | G30: Property Damage-Only
C32: S2. | D32: Guidance on Treatment of the Economic Value of Statistical Life in the US (2019) estimates plus 1.6% (2020), 7.0% (2021) the consumer price index, as per the US Bureau of Labor Statistics in the MN region (1).
F33: =PARAMETERS!E7 -> 13000000 | G33: Fatal Crashes
F34: =PARAMETERS!E8 -> 1235728 | G34: Incapacitating Injury Crashes
F35: =PARAMETERS!E9 -> 243152 | G35: Non-incapacitating Injury Crashes
F36: =PARAMETERS!E10 -> 116168 | G36: Possible Injury Crashes
F37: =PARAMETERS!E11 -> 5200 | G37: Property Damage Only Crashes
C39: S3. | D39: Average crash reduction due to TRAWS (17).
F40: =PARAMETERS!E19 -> 28 | G40: percent
C42: S4. | D42: Average theoretical number of crashes reduced at proposed location per severity type after TRAWS deployment:
F43: =F26*($F$40/100) -> 0 | G43: Fatal Crashes
F44: =F27*($F$40/100) -> 0 | G44: Incapacitating Injury Crashes
F45: 0 | G45: Non-incapacitating Injury Crashes
F46: 0 | G46: Possible Injury Crashes
F47: 0 | G47: Property Damage Only Crashes
C49: S5. | D49: Expected safety benefit per crash severity type.
F50: =F43*F33 -> 0 | G50: Fatal Crashes
F51: =F44*F34 -> 0 | G51: Incapacitating Injury Crashes
F52: 0 | G52: Non-incapacitating Injury Crashes
F53: 0 | G53: Possible Injury Crashes
F54: 0 | G54: Property Damage Only Crashes
E56: Estimated Annual Safety Benefit: | F56: =SUM(F50:F54) -> 0
C59: Benefit-Cost Analysis
C60: Y1 | D60: Annual Benefit | E60: =F56 -> 0 | F60: Y6 | G60: PV Annual Benefit | H60: =E72/(1.07^1) -> 0
C61: Y1 | D61: Estimated Cost | E61: =TRAWS!G11 -> 0 | F61: Y6 | G61: PV Estimated Cost | H61: =E73/(1.07^1) -> 0
C63: Y2 | D63: PV Annual Benefit | E63: =E60/(1.07^1) -> 0 | F63: Y7 | G63: PV Annual Benefit | H63: =H60/(1.07^1) -> 0
C64: Y2 | D64: PV Estimated Cost | E64: =(PARAMETERS!E47*TRAWS!G14)/(1.07^1) -> 0 | F64: Y7 | G64: PV Estimated Cost | H64: =H61/(1.07^1) -> 0
C66: Y3 | D66: PV Annual Benefit | E66: =E63/(1.07^1) -> 0 | F66: Y8 | G66: PV Annual Benefit | H66: =H63/(1.07^1) -> 0
C67: Y3 | D67: PV Estimated Cost | E67: =E64/(1.07^1) -> 0 | F67: Y8 | G67: PV Estimated Cost | H67: =H64/(1.07^1) -> 0
C69: Y4 | D69: PV Annual Benefit | E69: =E66/(1.07^1) -> 0 | F69: Y9 | G69: PV Annual Benefit | H69: =H66/(1.07^1) -> 0
C70: Y4 | D70: PV Estimated Cost | E70: =E67/(1.07^1) -> 0 | F70: Y9 | G70: PV Estimated Cost | H70: =H67/(1.07^1) -> 0
C72: Y5 | D72: PV Annual Benefit | E72: =E69/(1.07^1) -> 0 | F72: Y10 | G72: PV Annual Benefit | H72: =H69/(1.07^1) -> 0
C73: Y5 | D73: PV Estimated Cost | E73: =E70/(1.07^1) -> 0 | F73: Y10 | G73: PV Estimated Cost | H73: =H70/(1.07^1) -> 0
F76: 20-Year Monetized Benefits = | G76: =SUM(E60,E63,E66,E69,E72,H60,H63,H66,H69,H72) -> 0
F77: 20-Year Estimated Costs = | G77: =SUM(E61,E64,E67,E70,E73,H61,H64,H67,H70,H73) -> 0
F79: Benefit-Cost Ratio = | G79: =G76/G77 ->  | H79: :1
F80: Return-on-Investment = | G80: =(G76-G77)/G77 -> 

Sheet Other (hidden)
D2: Transportation System Management and Operations - Traffic Infrastructure Process
D3: Project Benefits - Other
D5: Region: | E5: =IF('Step 1 - Project Information'!E5=0, "-",'Step 1 - Project Information'!E5) -> -
D6: Proposed Project Name: | E6: =IF('Step 1 - Project Information'!E6=0, "-",'Step 1 - Project Information'!E6) -> -
D7: Proposed Project Benefit Analyst: | E7: =IF('Step 1 - Project Information'!E7=0, "-",'Step 1 - Project Information'!E7) -> -
C9: 1 | D9: What is the expected design and construction cost (total project cost)?
C11: 2 | D11: Provide the anticipated level of need in the vicinity of the proposed project using the following Needs Analysis Tool presets:
E12: Default TIP | F12: =IF('Step 1 - Project Information'!F11=0,"-",'Step 1 - Project Information'!F11) -> -
E13: Safety | F13: =IF('Step 1 - Project Information'!F12=0,"-",'Step 1 - Project Information'!F12) -> -
E14: Mobility (Present) | F14: =IF('Step 1 - Project Information'!F13=0,"-",'Step 1 - Project Information'!F13) -> -
E15: Mobility (Future) | F15: =IF('Step 1 - Project Information'!F14=0,"-",'Step 1 - Project Information'!F14) -> -
E16: Service | F16: =IF('Step 1 - Project Information'!F15=0,"-",'Step 1 - Project Information'!F15) -> -
E17: Freight Performance | F17: =IF('Step 1 - Project Information'!F16=0,"-",'Step 1 - Project Information'!F16) -> -
C20: Safety Benefits
C22: S1. | D22: Describe the anticipated Safety benefits of the proposed project.
C26: Mobility Benefits
C28: M1. | D28: Describe the anticipated Mobility benefits of the proposed project.
C32: Productivity Benefits
C34: P1. | D34: Describe the anticipated Productivity benefits of the proposed project.
C38: Energy and Environment Benefits
C40: E1. | D40: Describe the anticipated Energy and Environment benefits of the proposed project.
F44: Back to Links Tab

Sheet PARAMETERS
C2: Transportation System Management and Operations - Traffic Infrastructure Process
C3: Project Benefit-Cost Analysis - Parameters
C5: Safety Parameters
C6: Source | D6: Description | E6: Value | H6: Comments
C7: Guidance on Treatment of the Economic Value of Statistical Life in the US (2019) estimates plus 1.6% (2020), 7.0% (2021) the consumer price index, as per the US Bureau of Labor Statistics in the MN region (1). | D7: Fatal Injury | E7: =12500000*D77 -> 13000000 | H7: Updated based on 2024 Benefit Cost analysis for discretionary grants
D8: Suspected Serious Injury | E8: =1188200*D77 -> 1235728
D9: Suspected Minor Injury | E9: =233800*D77 -> 243152
D10: Possible Injury | E10: =111700*D77 -> 116168
D11: Property Damage-Only | E11: =5000*D77 -> 5200
C12: Average Crash Rate per MEV (2). | D12: Rural Crash Rate (per MEV) | E12: 0.96
D13: Urban Crash Rate (per MEV) | E13: 1.05
C14: Average crash reduction due to DMS (14). | D14: percent reduction | E14: 8.6
C15: Average crash reduction due to signal retiming (3). | D15: percent reduction | E15: 31
C16: Average crash reduction along a coordinated corridor (4). | D16: percent reduction | E16: 10.5
C17: Average percent of crashes that are secondary crashes (5). | D17: percent crashes | E17: 1 | H17: Updated using 2017-2020 data from 10 states in the USDOT report Secondary Crash Research: A Multistate analysis June 2023
C18: Average percent reduction of secondary crashes by CCTV (5). | D18: percent reduction | E18: =(30+50)/2 -> 40
C19: Average crash reduction due to TRAWS (17). | D19: percent reduction | E19: 28
C21: Mobility Parameters
C22: Source | D22: Description | E22: Value
C23: Average vehicle occupancy (6). | D23: persons per vehicle | E23: 1.67
C24: Value of Travel Time Savings per FHWA and estimates an increase in inflation in 2023 (19) | D24: $ per hour TTS | E24: =19.6*D77 -> 20.384 | H24: Updated based on 2024 Benefit Cost analysis for discretionary grants
C25: Per capita income in past 12 months (7). | D25: $ per year | E25: =40130*D77 -> 41735.2 | H25: Updated based on census data.
C26: Average delay reduction due to signal retiming (8). | D26: percent reduction | E26: 27.2
C27: Approximate percentage of travelers who will adjust their travel route based on information provided by DMS (9). | D27: percent | E27: 18 | H27: A 2023 Utah study reported 18% diversion - https://rosap.ntl.bts.gov/view/dot/72910 Future updates should adjust this figure to be delay/travel time reduction dependent. If there are not viable parallel routes where travel time reductions are likely then DMS will not help. For example, the MDOT 2022 study on Quantifying Effectiveness and Impacts of Digital Message Signs on Traffic Flow reported an average diversion rate of 3.6% with a 35% increase in diversion per 1 min of travel time savings. Other studies have also shown that queuing and congestion significantly affects the diversion rate. https://www.michigan.gov/MDOT/-/Media/Project/Websites/MDOT/Programs/Research-Administration/Final-Reports/SPR-1709-Report.pdf
C28: Average percent reduced incident duration due to incident management (10). | D28: percent reduction | E28: 37.25
C29: Approximate percentage of travelers who consult 511 AND change route (11). | D29: percent | E29: =(9*49)/100 -> 4.41 | H29: Not currently used in workbook
C31: Environmental Parameters
C32: Source | D32: Description | E32: Value
C33: Average Wisconsin fuel cost (AAA Gas prices 03/01/2022) (12). | D33: Fuel cost ($ per gallon) | E33: 3.31 | H33: Updated based on July 2024 AAA gas prices
C34: Average fuel consumption per minute of idle time. It is assumed that the reduction in fuel consumption would be based primarily on the reduction of idle time. This is a low estimate of fuel savings because there would be additional savings due to the smoother traffic progression (13). | D34: Fuel consumption per idle time (gallons / min) | E34: 0.0065 | H34: Updated based on .39 gal per hour with no load from ford crown victoria from ANL 1 & 2 data from Argonne National Lab conventional vehicle snapshot - 2012 and 2013
C35: Average CO2 emitted per gallon of gasoline burned (6). | D35: Metric tons per gallon | E35: 0.00892
C36: Average cost per metric ton of C02 (6). | D36: $ per metric ton | E36: 228 | H36: Updated based on table A-6
C38: Productivity Parameters
C39: Source | D39: Item | E39: Cost
C40: TOAMS? | D40: Cellular Capital Cost | E40: 2500
D41: Cellular Monthly Charge per Location | E41: 150
C42: TOAMS / Todd Assumed per mile per pair of fiber per year. | D42: Average Revenue per Mile Fiber | E42: 300 | H42: Updated based on email from Todd on 7/3/2024
D43: Average Annual Cost of Fiber Pair Leased Per Mile | E43: 600
D44: Annual O&M Cost for Mile Fiber | E44: 10 | I44: PM
C45: TOAMS | D45: Annual O&M Cost for DMS | E45: =908+1840 -> 2748 | H45: The average annual electricity cost of DMS is $908. Based on FY 24 data, the average work order cost across all DMS is $1,840. Based on FY 22 data from TAPCO report, the average repair cost is $773 and average preventative maintenance cost is $267. | I45: =60720/227 -> 267.4889868
C46: TOAMS | D46: Annual O&M Cost for Camera | E46: =707+1450 -> 2157 | H46: The average annual electricity cost of CCTVs is $707. Based on FY 24 data, the average work order cost across all CCTV is $1,450. Based on FY 22 data from TAPCO report, the average repair cost is $590.84 and average preventative maintenance costs is $300 | I46: =162632/543 -> 299.5064457
C47: TOAMS / Don. assume DMS, 2 detectors, and 1 CCTV used for a TRAWS site. | D47: Annual O&M Cost for TRAWS | E47: =3.6*350 -> 1260 | H47: The average annual electricity cost of TRAWS is $350. Assumed to be similar to DMS and Camera for 3.6x electrical costs
C48: AASHTO Salary Survey | D48: IT hourly wage | E48: =60777/(52*40) -> 29.21971154
D49: Electrical Tech hourly wage | E49: =60777/(52*40) -> 29.21971154 | H49: NETWORK COMMUNICATIONS SYSTEMS ANALYST ADVANCED - $60,777 annually
D50: Civil Engineer hourly wage | E50: =84365/(52*40) -> 40.56009615 | H50: $84,365 annually
C51: Tapco Email (2014) | D51: Emergency Surcharge (Tapco email) | E51: 100
C53: Ratio for Conversion to 2023 Dollars (8)
C54: Year | D54: Inflation Factor
C55: 2000 | D55: 1.77
C56: 2001 | D56: 1.72
C57: 2002 | D57: 1.69
C58: 2003 | D58: 1.66
C59: 2004 | D59: 1.61
C60: 2005 | D60: 1.56
C61: 2006 | D61: 1.51
C62: 2007 | D62: 1.47
C63: 2008 | D63: 1.42
C64: 2009 | D64: 1.42
C65: 2010 | D65: 1.4
C66: 2011 | D66: 1.35
C67: 2012 | D67: 1.33
C68: 2013 | D68: 1.31
C69: 2014 | D69: 1.29
C70: 2015 | D70: 1.29
C71: 2016 | D71: 1.27
C72: 2017 | D72: 1.24
C73: 2018 | D73: 1.21
C74: 2019 | D74: 1.19
C75: 2020 | D75: 1.18
C76: 2021 | D76: 1.12
C77: 2022 | D77: 1.04

Sheet REFERENCES
C2: Transportation System Management and Operations - Traffic Infrastructure Process
C3: Project Benefit-Cost Analysis - Parameters
C5: References
C6: 1 | D6: https://www.transportation.gov/sites/dot.gov/files/2023-12/Benefit%20Cost%20Analysis%20Guidance%202024%20Update.pdf
D7: Benefit Cost Analysis for Discretionary Grants December 2023 (page 39)
D8: 2024-07-01
C9: 2 | D9: https://www.fhwa.dot.gov/tpm/guidance/avo_factors.pdf
D10: Geometric Categories as Intersection Safety Evaluation Tools (page 3)
D11: 2005
C12: 3 | D12: https://www.itskrs.its.dot.gov/sites/default/files/docs/The%20Benefits%20of%20Retiming%20Traffic%20Signals%20%28ITE%20Journal%29.pdf
D13: The Benefits of Retiming Traffic Signals (page 18)
D14: 2004-04-01
C15: 4 | D15: http://www.fhwa.dot.gov/publications/researc/safety/04091/08.cfm
D16: Signalized Intersections: Informational Guide (page 19)
D17: 2012-04-12
C18: 5 | D18: https://ops.fhwa.dot.gov/publications/fhwahop23043/fhwahop23043.pdf
D19: Secondary Crash Research: A Multistate Analysis
D20: 2024-07-01
C21: 6 | D21: https://www.transportation.gov/sites/dot.gov/files/2023-12/Benefit%20Cost%20Analysis%20Guidance%202024%20Update.pdf
D22: Benefit Cost Analysis for Discretionary Grants December 2023 (page 41)
D23: 2024-07-01
C24: 7 | D24: https://www.census.gov/quickfacts/WI
D25: Per Capita Income - Wisconsin
D26: 2024-07-01
C27: 8 | D27: https://www.minneapolisfed.org/about-us/monetary-policy/inflation-calculator
D28: CPI-U US Inflation Rate
D29: 2024-07-01
C30: 9 | D30: https://rosap.ntl.bts.gov/view/dot/72910
C33: 10 | D33: RITA ITS Benefits or Virginia 511 services
D34: 2004-01-01
C35: 11 | D35: http://ntl.bts.gov/lib//jpodocs/repts_te/13987.html
D36: In Virginia, an evaluation of 511 services indicated 90 percent of callers found the service useful, and nearly half adjusted their travel plans based on the information provided.
D37: 2004-11-01
C38: 12 | D38: https://gasprices.aaa.com/?state=WI
D39: Average Wisconsin fuel cost
D40: 2024-07-01
C41: 13 | D41: https://www.anl.gov/esia/idle-reduction-information
D42: Idle Fuel Consumption for Selected Gasoline Diesel Vehicles
D43: 2024-07-01
C44: 14 | D44: https://rosap.ntl.bts.gov/view/dot/29148
D45: Costs and Benefits of MDOT Intelligent Transportation System Deployments (page 156)
D46: 2015-07-13
C47: 15 | D47: http://www.fhwa.dot.gov/policyinformation/pubs/hf/pl11028/chapter4.cfm
D48: Highway Finance Data Collection (page 5)
D49: 2014-11-07
C50: 16 | D50: http://www.forbes.com/2009/06/03/cap-and-trade-intelligent-investing-carbon.html
D51: Calculating the True Cost of Carbon
D52: 2009-06-03
C53: 17 | D53: https://www.fhwa.dot.gov/publications/research/safety/16035/16035.pdf
D54: Safety Evaluation of Intertraffic Conflict Warning Systems (Page 5)
D55: 2022-06-16
C56: 18 | D56: https://www.energy.gov/eere/wipo/downloads/traffic-synchronization-and-management-energy-savings
D57: Traffic Signal Synchronization for Energy Savings
D58: 2011-05-18
C59: 19 | D59: https://www.transportation.gov/sites/dot.gov/files/2023-12/Benefit%20Cost%20Analysis%20Guidance%202024%20Update.pdf
D60: Benefit Cost Analysis for Discretionary Grants December 2023 (page 40)
D61: 2024-07-01

Sheet DROP-DOWNS (hidden)
A1: YES.NO | C1: ITS Device Project Purpose | E1: Signal Project Purpose | G1: Signal Replace Type | I1: Region | K1: Region2 | M1: 3 Project Type | O1: Expansion Type | Q1: Expansion Purpose | S1: Software Upgrade | U1: Urban or Rural | W1: Increased Maintenance | Y1: Signal Retrofit Type | AA1: Vehicles Entering | AC1: Percent Ticket Reduction | AF1: Travel Time Reduction | AH1: Location Type | AJ1: ITS Device Type | AL1: Work Order Avg Ticket Amount | AN1: # | AP1: Needs Identification | AQ1: Corresponding Delay (s) | AS1: LOS | AT1: Corresponding Delay (s) | AW1: Link Importance | AY1: Detection Types
A2: YES | C2: Enhanced Traveler Information | E2: Increase Vehicular Safety | G2: Geometric Changes | I2: BTO | K2: Southeast | M2: Signal Retrofit | O2: Wireless/Cellular to Fiber Expansion | Q2: Establish Signal Communications | S2: Next Generation Upgrade | U2: Urban | W2: 6 months | Y2: Monotubes | AA2: > 2,000 vehs entering the avg intersection | AC2: 1 - 5 | AD2: =AVERAGE(1,5) -> 3 | AF2: Slight | AH2: Intersection | AJ2: CCTV | AL2: BTO | AM2: 1253 | AN2: 211 | AP2: LOW | AQ2: 10 | AS2: A | AT2: 5 | AW2: Critical
A3: NO | C3: Enhanced Incident Management | E3: Decrease Maintenance Efforts | G3: Addition of Turn Lane(s) | I3: Southeast | K3: Southwest | M3: LED Signal Replacement | O3: Communications Backbone | Q3: Eliminate Necessity for Service Provider | S3: Current Software Replacement | U3: Rural | W3: 1 year | Y3: Flashing Yellow Arrows | AA3: < 2,000 vehs entering the avg intersection | AC3: 6 - 15 | AD3: =AVERAGE(6,15) -> 10.5 | AF3: Moderate | AH3: Non-Intersection | AJ3: DMS | AL3: Southeast | AM3: 316 | AN3: 1048 | AP3: MEDIUM | AQ3: 35 | AS3: B | AT3: 15 | AW3: Somewhat Critical | AY3: Microwave Detection
A4: PARTIAL | G4: Cabinet Adjustments | I4: Southwest | K4: Northeast | S4: New Software Deployment | W4: 3 years | Y4: Minor Safety Improvements | AC4: 16 - 30 | AD4: =AVERAGE(16,30) -> 23 | AF4: Significant | AJ4: Detection | AL4: Southwest | AM4: 482 | AN4: 218 | AP4: HIGH | AQ4: 75 | AS4: C | AT4: 27.5 | AW4: Important | AY4: Bluetooth Detection
G5: Other | I5: Northeast | K5: North Central | Y5: Adaptive Signal System | AC5: 31 - 50 | AD5: =AVERAGE(31,50) -> 40.5 | AJ5: Other | AL5: Northeast | AM5: 437 | AN5: 86 | AP5: N/A | AQ5: =NA() ->  | AS5: D | AT5: 45 | AY5: Probe Data
I6: North Central | K6: Northwest | AC6: 51 - 75 | AD6: =AVERAGE(51,75) -> 63 | AL6: North Central | AM6: 444 | AN6: 23 | AS6: E | AT6: 67.5 | AY6: Thermal Detection
I7: Northwest | AC7: 76 - 95 | AD7: =AVERAGE(76,95) -> 85.5 | AL7: Northwest | AM7: 733 | AN7: 104 | AS7: F | AT7: 85 | AY7: Radar Detection
